Workbook

Sheet Resumo
B3: =[2]Dados!B6 -> GOVERNO DO ESTADO
B4: =[2]Dados!B7 -> CENTRO DE TECNOLOGIA E INOVAÇÃO
B5: FÁBRICA DE IDEIAS
J7: =TODAY() -> 2024-11-27
B9: Obra: | D9: =objeto -> CENTRO DE TECNOLOGIA E INOVAÇÃO | J9: =bairro -> Rebouças | K9: ="Área "&área&" m²" -> Área 62010,38 m²
B10: Local: | D10: =localização -> Avenida Getúlio Vargas - Curitiba - PR
B11: Planilha referencial: | E11: Bancos nacionais (Vide observações na planilha orçamentária)
B12: Cronograma Não Desonerado com ISS somente na mão de obra
C16: ITEM | D16: SERVIÇOS/PARCELAS | J16: PREÇO TOTAL | K16: %
C17: FASE 01 - DEMOLIÇÃO E RETROFIT | J17: 137009219.7 | K17: =IFERROR($J17/$J$79,0) -> 0.4404681747
C18: FASE 01.A - DEMOLIÇÃO | J18: 18670743.38 | K18: 0.06002419602
C19: 1. | D19: ADMINISTRAÇÃO LOCAL | J19: 2627245.684 | K19: 0.008446279118 | N19: 1.
C20: 2. | D20: DEMOLIÇÃO | J20: 16043497.7 | K20: 0.05157791691 | N20: 2.
C21: FASE 01.B - RETROFIT | J21: 118338476.3 | K21: 0.3804439787
C22: 1. | D22: ADMINISTRAÇÃO LOCAL | J22: 6912278.377 | K22: 0.02222214423 | N22: 1.
C23: 2. | D23: SERVIÇOS INICIAIS | J23: 7087523.626 | K23: 0.02278553664 | N23: 2.
C24: 3. | D24: INFRAESTRUTURA | J24: 1654163.529 | K24: 0.005317936938 | N24: 3.
C25: 4. | D25: SUPRAESTRUTURA | J25: 12843223.24 | K25: 0.04128941915 | N25: 4.
C26: 5. | D26: COBERTURA | J26: 7358286.881 | K26: 0.02365600796 | N26: 5.
C27: 6. | D27: IMPERMEABILIZAÇÃO | J27: 1041587.592 | K27: 0.003348578925 | N27: 6.
C28: 7. | D28: PAREDES E PAINÉIS | J28: 6823194.524 | K28: 0.02193575035 | N28: 7.
C29: 8. | D29: ESQUADRIAS | J29: 5172585.597 | K29: 0.01662924103 | N29: 8.
C30: 9. | D30: REVESTIMENTO DE FORRO | J30: 1988515.096 | K30: 0.006392837043 | N30: 9.
C31: 10. | D31: REVESTIMENTO DE PAREDE | J31: 6742346.654 | K31: 0.02167583416 | N31: 10.
C32: 11. | D32: REVESTIMENTO DE PISO | J32: 8678618.276 | K32: 0.02790071471 | N32: 11.
C33: 12. | D33: REVESTIMENTO ESCADA | J33: 6767.542999 | K33: 2.175683738e-05 | N33: 12.
C34: 13. | D34: GUARDA-CORPO/CORRIMÃO | J34: 2240170.858 | K34: 0.007201880071 | N34: 13.
C35: 14. | D35: INSTALAÇÕES | J35: 28410135.76 | K35: 0.09133517198 | N35: 14.
C36: 15. | D36: ELEVADORES | J36: 3430779.071 | K36: 0.01102954238 | N36: 15.
C37: 16. | D37: LOUÇAS/ BANCADAS/ METAIS/ ESPELHOS/ ACESSÓRIOS | J37: 3225409.053 | K37: 0.01036930246 | N37: 16.
C38: 17. | D38: EQUIPAMENTOS E CONTROLE DE ACESSO | J38: 624545.4918 | K38: 0.002007838695 | N38: 17.
C39: 18. | D39: PAISAGISMO | J39: 236035.7213 | K39: 0.000758826476 | N39: 18.
C40: 19. | D40: COMUNICAÇÃO VISUAL | J40: 217325.553 | K40: 0.0006986755335 | N40: 19.
C41: 20. | D41: MOBILIÁRIO | J41: 13123956.52 | K41: 0.0421919429 | N41: 20.
C42: 21. | D42: AS BUILT | J42: 27448.998 | K42: 8.82452296e-05 | N42: 21.
C43: 22. | D43: SERVIÇOS FINAIS | J43: 493578.3127 | K43: 0.001586794954 | N43: 22.
C44: FASE 02 - BOULEVARD | J44: 3767827.058 | K44: 0.01211311115
C45: 1. | D45: ADMINISTRAÇÃO LOCAL | J45: 1555213.333 | K45: 0.004999823953 | N45: 1.
C46: 2. | D46: SERVIÇOS INICIAIS | J46: 176628.013 | K46: 0.0005678378338 | N46: 2.
C47: 3. | D47: INFRAESTRUTURA | J47: 1909742.161 | K47: 0.006139591523 | N47: 3.
C48: 4. | D48: PAISAGISMO | J48: 95313.73261 | K48: 0.000306422195 | N48: 4.
C49: 5. | D49: COMUNICAÇÃO VISUAL | J49: 27461.35102 | K49: =IFERROR($J49/$J$79,0) -> 8.828494309e-05 | N49: 5.
C50: 6. | D50: AS BUILT | J50: 3468.467279 | K50: 1.115070544e-05 | N50: 6.
C51: FASE 03 - EDIFÍCIO CORPORATIVO | J51: 170276572 | K51: 0.5474187142
C52: 1. | D52: ADMINISTRAÇÃO LOCAL | J52: 10888493.93 | K52: 0.03500519935 | N52: 1.
C53: 2. | D53: SERVIÇOS INICIAIS | J53: 14810661.75 | K53: 0.0476144975 | N53: 2.
C54: 3. | D54: MOVIMENTAÇÃO DE TERRA | J54: 4755303.235 | K54: 0.01528772838 | N54: 3.
C55: 4. | D55: INFRAESTRUTURA | J55: 14106753.91 | K55: 0.0453515184 | N55: 4.
C56: 5. | D56: SUPRAESTRUTURA | J56: 35270015.37 | K56: 0.1133888605 | N56: 5.
C57: 6. | D57: COBERTURA | J57: 515314.2808 | K57: 0.001656673479 | N57: 6.
C58: 7. | D58: IMPERMEABILIZAÇÃO | J58: 2103315.567 | K58: 0.006761906761 | N58: 7.
C59: 8. | D59: PAREDES E PAINÉIS | J59: 8337806.923 | K59: 0.02680504717 | N59: 8.
C60: 9. | D60: ESQUADRIAS | J60: 12021778.78 | K60: 0.03864857394 | N60: 9.
C61: 10. | D61: REVESTIMENTO DE FORRO | J61: 2140717.481 | K61: 0.006882149417 | N61: 10.
C62: 11. | D62: REVESTIMENTO DE PAREDE | J62: 11782698.07 | K62: 0.0378799582 | N62: 11.
C63: 12. | D63: REVESTIMENTO DE PISO | J63: 12403545.54 | K63: 0.03987590817 | N63: 12.
C64: 13. | D64: REVESTIMENTO ESCADA | J64: 29387.09928 | K64: 9.447599229e-05 | N64: 13.
C65: 14. | D65: GUARDA-CORPO/CORRIMÃO | J65: 1118807.513 | K65: 0.003596831691 | N65: 14.
C66: 15. | D66: INSTALAÇÕES | J66: 26083396.89 | K66: 0.08385498615 | N66: 15.
C67: 16. | D67: ELEVADORES | J67: 4726198.671 | K67: 0.01519416071 | N67: 16.
C68: 17. | D68: HELIPONTO | J68: 557205.4918 | K68: 0.001791348688 | N68: 17.
C69: 18. | D69: AUDITÓRIO | J69: 5286018.542 | K69: 0.01699391431 | N69: 18.
C70: 19. | D70: LOUÇAS/ BANCADAS/ METAIS/ ESPELHOS/ ACESSÓRIOS | J70: 712797.5808 | K70: 0.002291558555 | N70: 19.
C71: 20. | D71: EQUIPAMENTOS E CONTROLE DE ACESSO | J71: 482963.0944 | K71: 0.001552668303 | N71: 20.
C72: 21. | D72: PAISAGISMO | J72: 358263.901 | K72: 0.001151775384 | N72: 21.
C73: 22. | D73: COMUNICAÇÃO VISUAL | J73: 123796.1703 | K73: 0.000397989809 | N73: 22.
C74: 23. | D74: MOBILIÁRIO | J74: 1110809.058 | K74: 0.003571117618 | N74: 23.
C75: 24. | D75: AS BUILT | J75: 28826.98441 | K75: 9.26752903e-05 | N75: 24.
C76: 25. | D76: SERVIÇOS FINAIS | J76: 521696.1467 | K76: 0.001677190411 | N76: 25.
C79: TOTAL | J79: =SUM(J17:J78)-J51-J44-J21-J18-J17 -> 311053618.7 | K79: =SUM(K17:K78)-K51-K44-K21-K18-K17 -> 1
C82: =TODAY() -> 2024-11-27

Sheet CRONOGRAMA
A1: CRONOGRAMA ESTIMATIVO FÍSICO FINANCEIRO
A2: Objeto: | B2: CENTRO DE TECNOLOGIA, INOVAÇÃO, LAZER E CULTURA - FÁBRICA DE IDEIAS
A3: Local: | B3: Avenida Getúlio Vargas - Curitiba - PR
A4: Área: | B4: 62010.38
A5: Prazo: | B5: 24 MESES | AY5: (INSERIR LOGO DA EMPRESA)
A6: Data: | B6: =TODAY() -> 2024-11-27
A7: ITEM | B7: FASES | C7: PREÇO TOTAL (R$) COM BDI | D7: REFERÊNCIA | E7: ETAPA 1 | I7: ETAPA 2 | M7: ETAPA 3 | Q7: ETAPA 4 | U7: ETAPA 5 | Y7: ETAPA 6 | AC7: ETAPA 7 | AG7: ETAPA 8 | AK7: ETAPA 9 | AO7: ETAPA 10 | AS7: ETAPA 11 | AW7: ETAPA 12 | BA7: ETAPA 13 | BE7: ETAPA 14 | BI7: ETAPA 15 | BM7: ETAPA 16 | BQ7: ETAPA 17 | BU7: ETAPA 18 | BY7: ETAPA 19 | CC7: ETAPA 20 | CG7: ETAPA 21 | CK7: ETAPA 22 | CO7: ETAPA 23 | CS7: ETAPA 24
E8: 0-30 DIAS | I8: =(LEFT(E8,SEARCH("-",E8)-1)+30)&"-"&(MID(E8,SEARCH("-",E8)+1,3)+30)&" DIAS" -> 30-60 DIAS | M8: =(LEFT(I8,SEARCH("-",I8)-1)+30)&"-"&(MID(I8,SEARCH("-",I8)+1,3)+30)&" DIAS" -> 60-90 DIAS | Q8: =(LEFT(M8,SEARCH("-",M8)-1)+30)&"-"&(MID(M8,SEARCH("-",M8)+1,3)+30)&" DIAS" -> 90-120 DIAS | U8: =(LEFT(Q8,SEARCH("-",Q8)-1)+30)&"-"&(MID(Q8,SEARCH("-",Q8)+1,3)+30)&" DIAS" -> 120-150 DIAS | Y8: =(LEFT(U8,SEARCH("-",U8)-1)+30)&"-"&(MID(U8,SEARCH("-",U8)+1,3)+30)&" DIAS" -> 150-180 DIAS | AC8: =(LEFT(Y8,SEARCH("-",Y8)-1)+30)&"-"&(MID(Y8,SEARCH("-",Y8)+1,3)+30)&" DIAS" -> 180-210 DIAS | AG8: =(LEFT(AC8,SEARCH("-",AC8)-1)+30)&"-"&(MID(AC8,SEARCH("-",AC8)+1,3)+30)&" DIAS" -> 210-240 DIAS | AK8: =(LEFT(AG8,SEARCH("-",AG8)-1)+30)&"-"&(MID(AG8,SEARCH("-",AG8)+1,3)+30)&" DIAS" -> 240-270 DIAS | AO8: =(LEFT(AK8,SEARCH("-",AK8)-1)+30)&"-"&(MID(AK8,SEARCH("-",AK8)+1,3)+30)&" DIAS" -> 270-300 DIAS | AS8: =(LEFT(AO8,SEARCH("-",AO8)-1)+30)&"-"&(MID(AO8,SEARCH("-",AO8)+1,3)+30)&" DIAS" -> 300-330 DIAS | AW8: =(LEFT(AS8,SEARCH("-",AS8)-1)+30)&"-"&(MID(AS8,SEARCH("-",AS8)+1,3)+30)&" DIAS" -> 330-360 DIAS | BA8: =(LEFT(AW8,SEARCH("-",AW8)-1)+30)&"-"&(MID(AW8,SEARCH("-",AW8)+1,3)+30)&" DIAS" -> 360-390 DIAS | BE8: =(LEFT(BA8,SEARCH("-",BA8)-1)+30)&"-"&(MID(BA8,SEARCH("-",BA8)+1,3)+30)&" DIAS" -> 390-420 DIAS | BI8: =(LEFT(BE8,SEARCH("-",BE8)-1)+30)&"-"&(MID(BE8,SEARCH("-",BE8)+1,3)+30)&" DIAS" -> 420-450 DIAS | BM8: =(LEFT(BI8,SEARCH("-",BI8)-1)+30)&"-"&(MID(BI8,SEARCH("-",BI8)+1,3)+30)&" DIAS" -> 450-480 DIAS | BQ8: =(LEFT(BM8,SEARCH("-",BM8)-1)+30)&"-"&(MID(BM8,SEARCH("-",BM8)+1,3)+30)&" DIAS" -> 480-510 DIAS | BU8: =(LEFT(BQ8,SEARCH("-",BQ8)-1)+30)&"-"&(MID(BQ8,SEARCH("-",BQ8)+1,3)+30)&" DIAS" -> 510-540 DIAS | BY8: =(LEFT(BU8,SEARCH("-",BU8)-1)+30)&"-"&(MID(BU8,SEARCH("-",BU8)+1,3)+30)&" DIAS" -> 540-570 DIAS | CC8: =(LEFT(BY8,SEARCH("-",BY8)-1)+30)&"-"&(MID(BY8,SEARCH("-",BY8)+1,3)+30)&" DIAS" -> 570-600 DIAS | CG8: =(LEFT(CC8,SEARCH("-",CC8)-1)+30)&"-"&(MID(CC8,SEARCH("-",CC8)+1,3)+30)&" DIAS" -> 600-630 DIAS | CK8: =(LEFT(CG8,SEARCH("-",CG8)-1)+30)&"-"&(MID(CG8,SEARCH("-",CG8)+1,3)+30)&" DIAS" -> 630-660 DIAS | CO8: =(LEFT(CK8,SEARCH("-",CK8)-1)+30)&"-"&(MID(CK8,SEARCH("-",CK8)+1,3)+30)&" DIAS" -> 660-690 DIAS | CS8: =(LEFT(CO8,SEARCH("-",CO8)-1)+30)&"-"&(MID(CO8,SEARCH("-",CO8)+1,3)+30)&" DIAS" -> 690-720 DIAS
E9: 1ªS | F9: 2ªS | G9: 3ªS | H9: 4ªS | I9: 1ªS | J9: 2ªS | K9: 3ªS | L9: 4ªS | M9: 1ªS | N9: 2ªS | O9: 3ªS | P9: 4ªS | Q9: 1ªS | R9: 2ªS | S9: 3ªS | T9: 4ªS | U9: 1ªS | V9: 2ªS | W9: 3ªS | X9: 4ªS | Y9: 1ªS | Z9: 2ªS | AA9: 3ªS | AB9: 4ªS | AC9: 1ªS | AD9: 2ªS | AE9: 3ªS | AF9: 4ªS | AG9: 1ªS | AH9: 2ªS | AI9: 3ªS | AJ9: 4ªS | AK9: 1ªS | AL9: 2ªS | AM9: 3ªS | AN9: 4ªS | AO9: 1ªS | AP9: 2ªS | AQ9: 3ªS | AR9: 4ªS | AS9: 1ªS | AT9: 2ªS | AU9: 3ªS | AV9: 4ªS | AW9: 1ªS | AX9: 2ªS | AY9: 3ªS | AZ9: 4ªS | BA9: 1ªS | BB9: 2ªS | BC9: 3ªS | BD9: 4ªS | BE9: 1ªS | BF9: 2ªS | BG9: 3ªS | BH9: 4ªS | BI9: 1ªS | BJ9: 2ªS | BK9: 3ªS | BL9: 4ªS | BM9: 1ªS | BN9: 2ªS | BO9: 3ªS | BP9: 4ªS | BQ9: 1ªS | BR9: 2ªS | BS9: 3ªS | BT9: 4ªS | BU9: 1ªS | BV9: 2ªS | BW9: 3ªS | BX9: 4ªS | BY9: 1ªS | BZ9: 2ªS | CA9: 3ªS | CB9: 4ªS | CC9: 1ªS | CD9: 2ªS | CE9: 3ªS | CF9: 4ªS | CG9: 1ªS | CH9: 2ªS | CI9: 3ªS | CJ9: 4ªS | CK9: 1ªS | CL9: 2ªS | CM9: 3ªS | CN9: 4ªS | CO9: 1ªS | CP9: 2ªS | CQ9: 3ªS | CR9: 4ªS | CS9: 1ªS | CT9: 2ªS | CU9: 3ªS | CV9: 4ªS | CW9: SOMATÓRIO | CX9: VALIDAÇÃO
B10: =Resumo!C17 -> FASE 01 - DEMOLIÇÃO E RETROFIT | D10: DURAÇÃO
D11: R$ | E11: =IFERROR($C10*E12,0) -> 0 | I11: =IFERROR($C10*I12,0) -> 0 | M11: =IFERROR($C10*M12,0) -> 0 | Q11: =IFERROR($C10*Q12,0) -> 0 | U11: =IFERROR($C10*U12,0) -> 0 | Y11: =IFERROR($C10*Y12,0) -> 0 | AC11: =IFERROR($C10*AC12,0) -> 0 | AG11: =IFERROR($C10*AG12,0) -> 0 | AK11: =IFERROR($C10*AK12,0) -> 0 | AO11: =IFERROR($C10*AO12,0) -> 0 | AS11: =IFERROR($C10*AS12,0) -> 0 | AW11: =IFERROR($C10*AW12,0) -> 0 | BA11: =IFERROR($C10*BA12,0) -> 0 | BE11: =IFERROR($C10*BE12,0) -> 0 | BI11: =IFERROR($C10*BI12,0) -> 0 | BM11: =IFERROR($C10*BM12,0) -> 0 | BQ11: =IFERROR($C10*BQ12,0) -> 0 | BU11: =IFERROR($C10*BU12,0) -> 0 | BY11: =IFERROR($C10*BY12,0) -> 0 | CC11: =IFERROR($C10*CC12,0) -> 0 | CG11: =IFERROR($C10*CG12,0) -> 0 | CK11: =IFERROR($C10*CK12,0) -> 0 | CO11: =IFERROR($C10*CO12,0) -> 0 | CS11: =IFERROR($C10*CS12,0) -> 0 | CW11: =SUM(E11:CV11) -> 0 | CX11: =CW11=C10 -> TRUE
D12: %
B13: =Resumo!C18 -> FASE 01.A - DEMOLIÇÃO | D13: DURAÇÃO
D14: R$ | E14: =IFERROR($C13*E15,0) -> 0 | I14: =IFERROR($C13*I15,0) -> 0 | M14: =IFERROR($C13*M15,0) -> 0 | Q14: =IFERROR($C13*Q15,0) -> 0 | U14: =IFERROR($C13*U15,0) -> 0 | Y14: =IFERROR($C13*Y15,0) -> 0 | AC14: =IFERROR($C13*AC15,0) -> 0 | AG14: =IFERROR($C13*AG15,0) -> 0 | AK14: =IFERROR($C13*AK15,0) -> 0 | AO14: =IFERROR($C13*AO15,0) -> 0 | AS14: =IFERROR($C13*AS15,0) -> 0 | AW14: =IFERROR($C13*AW15,0) -> 0 | BA14: =IFERROR($C13*BA15,0) -> 0 | BE14: =IFERROR($C13*BE15,0) -> 0 | BI14: =IFERROR($C13*BI15,0) -> 0 | BM14: =IFERROR($C13*BM15,0) -> 0 | BQ14: =IFERROR($C13*BQ15,0) -> 0 | BU14: =IFERROR($C13*BU15,0) -> 0 | BY14: =IFERROR($C13*BY15,0) -> 0 | CC14: =IFERROR($C13*CC15,0) -> 0 | CG14: =IFERROR($C13*CG15,0) -> 0 | CK14: =IFERROR($C13*CK15,0) -> 0 | CO14: =IFERROR($C13*CO15,0) -> 0 | CS14: =IFERROR($C13*CS15,0) -> 0 | CW14: =SUM(E14:CV14) -> 0 | CX14: =CW14=C13 -> TRUE
D15: %
A16: 1. | B16: =VLOOKUP(A16,Resumo!$C$15:$K$47,2,FALSE) -> ADMINISTRAÇÃO LOCAL | C16: =Resumo!J19 -> 2627245.684 | D16: DURAÇÃO
D17: R$ | E17: =$C16*E18 -> 262724.5684 | I17: =$C16*I18 -> 262724.5684 | M17: =$C16*M18 -> 262724.5684 | Q17: =$C16*Q18 -> 262724.5684 | U17: =$C16*U18 -> 262724.5684 | Y17: =$C16*Y18 -> 262724.5684 | AC17: =$C16*AC18 -> 262724.5684 | AG17: =$C16*AG18 -> 262724.5684 | AK17: =$C16*AK18 -> 262724.5684 | AO17: =$C16*AO18 -> 262724.5684 | AS17: =$C16*AS18 -> 0 | AW17: =$C16*AW18 -> 0 | BA17: =$C16*BA18 -> 0 | BE17: =$C16*BE18 -> 0 | BI17: =$C16*BI18 -> 0 | BM17: =$C16*BM18 -> 0 | BQ17: =$C16*BQ18 -> 0 | BU17: =$C16*BU18 -> 0 | BY17: =$C16*BY18 -> 0 | CC17: =$C16*CC18 -> 0 | CG17: =$C16*CG18 -> 0 | CK17: =$C16*CK18 -> 0 | CO17: =$C16*CO18 -> 0 | CS17: =$C16*CS18 -> 0 | CW17: =SUM(E17:CV17) -> 2627245.684 | CX17: =CW17=C16 -> TRUE
D18: % | E18: =1/10 -> 0.1 | I18: =1/10 -> 0.1 | M18: =1/10 -> 0.1 | Q18: =1/10 -> 0.1 | U18: =1/10 -> 0.1 | Y18: =1/10 -> 0.1 | AC18: =1/10 -> 0.1 | AG18: =1/10 -> 0.1 | AK18: =1/10 -> 0.1 | AO18: =1/10 -> 0.1 | CW18: =SUM(E18:CV18) -> 1 | CX18: =CW18=100% -> TRUE
A19: =LEFT(A16,1)+1&"." -> 2. | B19: =VLOOKUP(A19,Resumo!$C$15:$K$47,2,FALSE) -> DEMOLIÇÃO | C19: =Resumo!J20 -> 16043497.7 | D19: DURAÇÃO
D20: R$ | E20: =$C19*E21 -> 1604349.77 | I20: =$C19*I21 -> 1604349.77 | M20: =$C19*M21 -> 1604349.77 | Q20: =$C19*Q21 -> 1604349.77 | U20: =$C19*U21 -> 1604349.77 | Y20: =$C19*Y21 -> 1604349.77 | AC20: =$C19*AC21 -> 1604349.77 | AG20: =$C19*AG21 -> 1604349.77 | AK20: =$C19*AK21 -> 1604349.77 | AO20: =$C19*AO21 -> 1604349.77 | AS20: =$C19*AS21 -> 0 | AW20: =$C19*AW21 -> 0 | BA20: =$C19*BA21 -> 0 | BE20: =$C19*BE21 -> 0 | BI20: =$C19*BI21 -> 0 | BM20: =$C19*BM21 -> 0 | BQ20: =$C19*BQ21 -> 0 | BU20: =$C19*BU21 -> 0 | BY20: =$C19*BY21 -> 0 | CC20: =$C19*CC21 -> 0 | CG20: =$C19*CG21 -> 0 | CK20: =$C19*CK21 -> 0 | CO20: =$C19*CO21 -> 0 | CS20: =$C19*CS21 -> 0 | CW20: =SUM(E20:CV20) -> 16043497.7 | CX20: =CW20=C19 -> TRUE
D21: % | E21: =1/10 -> 0.1 | I21: =1/10 -> 0.1 | M21: =1/10 -> 0.1 | Q21: =1/10 -> 0.1 | U21: =1/10 -> 0.1 | Y21: =1/10 -> 0.1 | AC21: =1/10 -> 0.1 | AG21: =1/10 -> 0.1 | AK21: =1/10 -> 0.1 | AO21: =1/10 -> 0.1 | CW21: =SUM(E21:CV21) -> 1 | CX21: =CW21=100% -> TRUE
B22: =Resumo!C21 -> FASE 01.B - RETROFIT | C22: =IFERROR(VLOOKUP(A22,Resumo!$C$15:$K$77,8,FALSE),"") ->  | D22: DURAÇÃO
D23: R$ | E23: =IFERROR($C22*E24,0) -> 0 | I23: =IFERROR($C22*I24,0) -> 0 | M23: =IFERROR($C22*M24,0) -> 0 | Q23: =IFERROR($C22*Q24,0) -> 0 | U23: =IFERROR($C22*U24,0) -> 0 | Y23: =IFERROR($C22*Y24,0) -> 0 | AC23: =IFERROR($C22*AC24,0) -> 0 | AG23: =IFERROR($C22*AG24,0) -> 0 | AK23: =IFERROR($C22*AK24,0) -> 0 | AO23: =IFERROR($C22*AO24,0) -> 0 | AS23: =IFERROR($C22*AS24,0) -> 0 | AW23: =IFERROR($C22*AW24,0) -> 0 | BA23: =IFERROR($C22*BA24,0) -> 0 | BE23: =IFERROR($C22*BE24,0) -> 0 | BI23: =IFERROR($C22*BI24,0) -> 0 | BM23: =IFERROR($C22*BM24,0) -> 0 | BQ23: =IFERROR($C22*BQ24,0) -> 0 | BU23: =IFERROR($C22*BU24,0) -> 0 | BY23: =IFERROR($C22*BY24,0) -> 0 | CC23: =IFERROR($C22*CC24,0) -> 0 | CG23: =IFERROR($C22*CG24,0) -> 0 | CK23: =IFERROR($C22*CK24,0) -> 0 | CO23: =IFERROR($C22*CO24,0) -> 0 | CS23: =IFERROR($C22*CS24,0) -> 0 | CW23: =SUM(E23:CV23) -> 0 | CX23: =CW23=C22 -> FALSE
D24: % | CW24: =SUM(E24:CV24) -> 0 | CX24: =CW24=100% -> FALSE
A25: 1. | B25: =VLOOKUP(A25,Resumo!$C$21:$K$47,2,FALSE) -> ADMINISTRAÇÃO LOCAL | C25: =Resumo!J22 -> 6912278.377 | D25: DURAÇÃO
D26: R$ | E26: =IFERROR($C25*E27,0) -> 109917.9036 | I26: =IFERROR($C25*I27,0) -> 144123.0217 | M26: =IFERROR($C25*M27,0) -> 409697.7129 | Q26: =IFERROR($C25*Q27,0) -> 631008.8739 | U26: =IFERROR($C25*U27,0) -> 999200.2451 | Y26: =IFERROR($C25*Y27,0) -> 960366.391 | AC26: =IFERROR($C25*AC27,0) -> 558313.8338 | AG26: =IFERROR($C25*AG27,0) -> 478094.0285 | AK26: =IFERROR($C25*AK27,0) -> 431771.3358 | AO26: =IFERROR($C25*AO27,0) -> 431771.3358 | AS26: =IFERROR($C25*AS27,0) -> 431771.3358 | AW26: =IFERROR($C25*AW27,0) -> 523273.9434 | BA26: =IFERROR($C25*BA27,0) -> 802968.4157 | BE26: =IFERROR($C25*BE27,0) -> 0 | BI26: =IFERROR($C25*BI27,0) -> 0 | BM26: =IFERROR($C25*BM27,0) -> 0 | BQ26: =IFERROR($C25*BQ27,0) -> 0 | BU26: =IFERROR($C25*BU27,0) -> 0 | BY26: =IFERROR($C25*BY27,0) -> 0 | CC26: =IFERROR($C25*CC27,0) -> 0 | CG26: =IFERROR($C25*CG27,0) -> 0 | CK26: =IFERROR($C25*CK27,0) -> 0 | CO26: =IFERROR($C25*CO27,0) -> 0 | CS26: =IFERROR($C25*CS27,0) -> 0 | CW26: =SUM(E26:CV26) -> 6912278.377 | CX26: =CW26=C25 -> TRUE
D27: % | E27: =(E29+E32+E35+E38+E41+E44+E47+E50+E53+E56+E59+E62+E65+E68+E71+E74+E77+E80+E83+E86+E89)/(Resumo!$J$21-Resumo!$J$22) -> 0.01590183404 | I27: =(I29+I32+I35+I38+I41+I44+I47+I50+I53+I56+I59+I62+I65+I68+I71+I74+I77+I80+I83+I86+I89)/(Resumo!$J$21-Resumo!$J$22) -> 0.02085029188 | M27: =(M29+M32+M35+M38+M41+M44+M47+M50+M53+M56+M59+M62+M65+M68+M71+M74+M77+M80+M83+M86+M89)/(Resumo!$J$21-Resumo!$J$22) -> 0.05927100886 | Q27: =(Q29+Q32+Q35+Q38+Q41+Q44+Q47+Q50+Q53+Q56+Q59+Q62+Q65+Q68+Q71+Q74+Q77+Q80+Q83+Q86+Q89)/(Resumo!$J$21-Resumo!$J$22) -> 0.09128811652 | U27: =(U29+U32+U35+U38+U41+U44+U47+U50+U53+U56+U59+U62+U65+U68+U71+U74+U77+U80+U83+U86+U89)/(Resumo!$J$21-Resumo!$J$22) -> 0.1445543988 | Y27: =(Y29+Y32+Y35+Y38+Y41+Y44+Y47+Y50+Y53+Y56+Y59+Y62+Y65+Y68+Y71+Y74+Y77+Y80+Y83+Y86+Y89)/(Resumo!$J$21-Resumo!$J$22) -> 0.1389363013 | AC27: =(AC29+AC32+AC35+AC38+AC41+AC44+AC47+AC50+AC53+AC56+AC59+AC62+AC65+AC68+AC71+AC74+AC77+AC80+AC83+AC86+AC89)/(Resumo!$J$21-Resumo!$J$22) -> 0.08077131784 | AG27: =(AG29+AG32+AG35+AG38+AG41+AG44+AG47+AG50+AG53+AG56+AG59+AG62+AG65+AG68+AG71+AG74+AG77+AG80+AG83+AG86+AG89)/(Resumo!$J$21-Resumo!$J$22) -> 0.06916591064 | AK27: =(AK29+AK32+AK35+AK38+AK41+AK44+AK47+AK50+AK53+AK56+AK59+AK62+AK65+AK68+AK71+AK74+AK77+AK80+AK83+AK86+AK89)/(Resumo!$J$21-Resumo!$J$22) -> 0.06246440207 | AO27: =(AO29+AO32+AO35+AO38+AO41+AO44+AO47+AO50+AO53+AO56+AO59+AO62+AO65+AO68+AO71+AO74+AO77+AO80+AO83+AO86+AO89)/(Resumo!$J$21-Resumo!$J$22) -> 0.06246440207 | AS27: =(AS29+AS32+AS35+AS38+AS41+AS44+AS47+AS50+AS53+AS56+AS59+AS62+AS65+AS68+AS71+AS74+AS77+AS80+AS83+AS86+AS89)/(Resumo!$J$21-Resumo!$J$22) -> 0.06246440207 | AW27: =(AW29+AW32+AW35+AW38+AW41+AW44+AW47+AW50+AW53+AW56+AW59+AW62+AW65+AW68+AW71+AW74+AW77+AW80+AW83+AW86+AW89)/(Resumo!$J$21-Resumo!$J$22) -> 0.07570209341 | BA27: =(BA29+BA32+BA35+BA38+BA41+BA44+BA47+BA50+BA53+BA56+BA59+BA62+BA65+BA68+BA71+BA74+BA77+BA80+BA83+BA86+BA89)/(Resumo!$J$21-Resumo!$J$22) -> 0.1161655205 | BE27: =(BE29+BE32+BE35+BE38+BE41+BE44+BE47+BE50+BE53+BE56+BE59+AS62+BE65+BE68+BE71+BE74+BE77+BE80+BE83+BE86+BE89)/(Resumo!$J$21-Resumo!$J$22) -> 0 | CW27: =SUM(E27:CV27) -> 1 | CX27: =CW27=100% -> TRUE
A28: =LEFT(A25,1)+1&"." -> 2. | B28: =VLOOKUP(A28,Resumo!$C$21:$K$47,2,FALSE) -> SERVIÇOS INICIAIS | C28: =Resumo!J23 -> 7087523.626 | D28: DURAÇÃO
D29: R$ | E29: =$C28*E30 -> 1771880.906 | I29: =$C28*I30 -> 1771880.906 | M29: =$C28*M30 -> 1771880.906 | Q29: =$C28*Q30 -> 1771880.906 | U29: =$C28*U30 -> 0 | Y29: =$C28*Y30 -> 0 | AC29: =$C28*AC30 -> 0 | AG29: =$C28*AG30 -> 0 | AK29: =$C28*AK30 -> 0 | AO29: =$C28*AO30 -> 0 | AS29: =$C28*AS30 -> 0 | AW29: =$C28*AW30 -> 0 | BA29: =$C28*BA30 -> 0 | BE29: =$C28*BE30 -> 0 | BI29: =$C28*BI30 -> 0 | BM29: =$C28*BM30 -> 0 | BQ29: =$C28*BQ30 -> 0 | BU29: =$C28*BU30 -> 0 | BY29: =$C28*BY30 -> 0 | CC29: =$C28*CC30 -> 0 | CG29: =$C28*CG30 -> 0 | CK29: =$C28*CK30 -> 0 | CO29: =$C28*CO30 -> 0 | CS29: =$C28*CS30 -> 0 | CW29: =SUM(E29:CV29) -> 7087523.626 | CX29: =CW29=C28 -> TRUE
D30: % | E30: =1/4 -> 0.25 | I30: =1/4 -> 0.25 | M30: =1/4 -> 0.25 | Q30: =1/4 -> 0.25 | CW30: =SUM(E30:CV30) -> 1 | CX30: =CW30=100% -> TRUE
A31: =LEFT(A28,1)+1&"." -> 3. | B31: =VLOOKUP(A31,Resumo!$C$21:$K$47,2,FALSE) -> INFRAESTRUTURA | C31: =Resumo!J24 -> 1654163.529 | D31: DURAÇÃO
D32: R$ | E32: =$C31*E33 -> 0 | I32: =$C31*I33 -> 551387.8429 | M32: =$C31*M33 -> 551387.8429 | Q32: =$C31*Q33 -> 551387.8429 | U32: =$C31*U33 -> 0 | Y32: =$C31*Y33 -> 0 | AC32: =$C31*AC33 -> 0 | AG32: =$C31*AG33 -> 0 | AK32: =$C31*AK33 -> 0 | AO32: =$C31*AO33 -> 0 | AS32: =$C31*AS33 -> 0 | AW32: =$C31*AW33 -> 0 | BA32: =$C31*BA33 -> 0 | BE32: =$C31*BE33 -> 0 | BI32: =$C31*BI33 -> 0 | BM32: =$C31*BM33 -> 0 | BQ32: =$C31*BQ33 -> 0 | BU32: =$C31*BU33 -> 0 | BY32: =$C31*BY33 -> 0 | CC32: =$C31*CC33 -> 0 | CG32: =$C31*CG33 -> 0 | CK32: =$C31*CK33 -> 0 | CO32: =$C31*CO33 -> 0 | CS32: =$C31*CS33 -> 0 | CW32: =SUM(E32:CV32) -> 1654163.529 | CX32: =CW32=C31 -> TRUE
D33: % | I33: =1/3 -> 0.3333333333 | M33: =1/3 -> 0.3333333333 | Q33: =1/3 -> 0.3333333333 | U33: 0 | Y33: 0 | CW33: =SUM(E33:CV33) -> 1 | CX33: =CW33=100% -> TRUE
A34: =LEFT(A31,1)+1&"." -> 4. | B34: =VLOOKUP(A34,Resumo!$C$21:$K$47,2,FALSE) -> SUPRAESTRUTURA | C34: =Resumo!J25 -> 12843223.24 | D34: DURAÇÃO | AG34: \
D35: R$ | E35: =$C34*E36 -> 0 | I35: =$C34*I36 -> 0 | M35: =$C34*M36 -> 4281074.414 | Q35: =$C34*Q36 -> 4281074.414 | U35: =$C34*U36 -> 4281074.414 | Y35: =$C34*Y36 -> 0 | AC35: =$C34*AC36 -> 0 | AG35: =$C34*AG36 -> 0 | AK35: =$C34*AK36 -> 0 | AO35: =$C34*AO36 -> 0 | AS35: =$C34*AS36 -> 0 | AW35: =$C34*AW36 -> 0 | BA35: =$C34*BA36 -> 0 | BE35: =$C34*BE36 -> 0 | BI35: =$C34*BI36 -> 0 | BM35: =$C34*BM36 -> 0 | BQ35: =$C34*BQ36 -> 0 | BU35: =$C34*BU36 -> 0 | BY35: =$C34*BY36 -> 0 | CC35: =$C34*CC36 -> 0 | CG35: =$C34*CG36 -> 0 | CK35: =$C34*CK36 -> 0 | CO35: =$C34*CO36 -> 0 | CS35: =$C34*CS36 -> 0 | CW35: =SUM(E35:CV35) -> 12843223.24 | CX35: =CW35=C34 -> TRUE
D36: % | M36: =1/3 -> 0.3333333333 | Q36: =1/3 -> 0.3333333333 | U36: =1/3 -> 0.3333333333 | AC36: 0 | AG36: 0 | AK36: 0 | AO36: 0 | AS36: 0 | AW36: 0 | CW36: =SUM(E36:CV36) -> 1 | CX36: =CW36=100% -> TRUE
A37: =LEFT(A34,1)+1&"." -> 5. | B37: =VLOOKUP(A37,Resumo!$C$21:$K$47,2,FALSE) -> COBERTURA | C37: =Resumo!J26 -> 7358286.881 | D37: DURAÇÃO
D38: R$ | E38: =$C37*E39 -> 0 | I38: =$C37*I39 -> 0 | M38: =$C37*M39 -> 0 | Q38: =$C37*Q39 -> 0 | U38: =$C37*U39 -> 3679143.441 | Y38: =$C37*Y39 -> 3679143.441 | AC38: =$C37*AC39 -> 0 | AG38: =$C37*AG39 -> 0 | AK38: =$C37*AK39 -> 0 | AO38: =$C37*AO39 -> 0 | AS38: =$C37*AS39 -> 0 | AW38: =$C37*AW39 -> 0 | BA38: =$C37*BA39 -> 0 | BE38: =$C37*BE39 -> 0 | BI38: =$C37*BI39 -> 0 | BM38: =$C37*BM39 -> 0 | BQ38: =$C37*BQ39 -> 0 | BU38: =$C37*BU39 -> 0 | BY38: =$C37*BY39 -> 0 | CC38: =$C37*CC39 -> 0 | CG38: =$C37*CG39 -> 0 | CK38: =$C37*CK39 -> 0 | CO38: =$C37*CO39 -> 0 | CS38: =$C37*CS39 -> 0 | CW38: =SUM(E38:CV38) -> 7358286.881 | CX38: =CW38=C37 -> TRUE
D39: % | U39: =1/2 -> 0.5 | Y39: =1/2 -> 0.5 | AG39: 0 | AK39: 0 | AO39: 0 | AS39: 0 | AW39: 0
A40: =LEFT(A37,1)+1&"." -> 6. | B40: =VLOOKUP(A40,Resumo!$C$21:$K$47,2,FALSE) -> IMPERMEABILIZAÇÃO | C40: =Resumo!J27 -> 1041587.592 | D40: DURAÇÃO
D41: R$ | E41: =$C40*E42 -> 0 | I41: =$C40*I42 -> 0 | M41: =$C40*M42 -> 0 | Q41: =$C40*Q42 -> 0 | U41: =$C40*U42 -> 520793.7961 | Y41: =$C40*Y42 -> 520793.7961 | AC41: =$C40*AC42 -> 0 | AG41: =$C40*AG42 -> 0 | AK41: =$C40*AK42 -> 0 | AO41: =$C40*AO42 -> 0 | AS41: =$C40*AS42 -> 0 | AW41: =$C40*AW42 -> 0 | BA41: =$C40*BA42 -> 0 | BE41: =$C40*BE42 -> 0 | BI41: =$C40*BI42 -> 0 | BM41: =$C40*BM42 -> 0 | BQ41: =$C40*BQ42 -> 0 | BU41: =$C40*BU42 -> 0 | BY41: =$C40*BY42 -> 0 | CC41: =$C40*CC42 -> 0 | CG41: =$C40*CG42 -> 0 | CK41: =$C40*CK42 -> 0 | CO41: =$C40*CO42 -> 0 | CS41: =$C40*CS42 -> 0 | CW41: =SUM(E41:CV41) -> 1041587.592 | CX41: =CW41=C40 -> TRUE
D42: % | U42: =1/2 -> 0.5 | Y42: =1/2 -> 0.5 | AS42: 0 | AW42: 0
A43: =LEFT(A40,1)+1&"." -> 7. | B43: =VLOOKUP(A43,Resumo!$C$21:$K$47,2,FALSE) -> PAREDES E PAINÉIS | C43: =Resumo!J28 -> 6823194.524 | D43: DURAÇÃO
D44: R$ | E44: =$C43*E45 -> 0 | I44: =$C43*I45 -> 0 | M44: =$C43*M45 -> 0 | Q44: =$C43*Q45 -> 2274398.175 | U44: =$C43*U45 -> 2274398.175 | Y44: =$C43*Y45 -> 2274398.175 | AC44: =$C43*AC45 -> 0 | AG44: =$C43*AG45 -> 0 | AK44: =$C43*AK45 -> 0 | AO44: =$C43*AO45 -> 0 | AS44: =$C43*AS45 -> 0 | AW44: =$C43*AW45 -> 0 | BA44: =$C43*BA45 -> 0 | BE44: =$C43*BE45 -> 0 | BI44: =$C43*BI45 -> 0 | BM44: =$C43*BM45 -> 0 | BQ44: =$C43*BQ45 -> 0 | BU44: =$C43*BU45 -> 0 | BY44: =$C43*BY45 -> 0 | CC44: =$C43*CC45 -> 0 | CG44: =$C43*CG45 -> 0 | CK44: =$C43*CK45 -> 0 | CO44: =$C43*CO45 -> 0 | CS44: =$C43*CS45 -> 0 | CW44: =SUM(E44:CV44) -> 6823194.524 | CX44: =CW44=C43 -> TRUE
D45: % | Q45: =1/3 -> 0.3333333333 | U45: =1/3 -> 0.3333333333 | Y45: =1/3 -> 0.3333333333 | AC45: 0 | AG45: 0 | AK45: 0
A46: =LEFT(A43,1)+1&"." -> 8. | B46: =VLOOKUP(A46,Resumo!$C$21:$K$47,2,FALSE) -> ESQUADRIAS | C46: =Resumo!J29 -> 5172585.597 | D46: DURAÇÃO
D47: R$ | E47: =$C46*E48 -> 0 | I47: =$C46*I48 -> 0 | M47: =$C46*M48 -> 0 | Q47: =$C46*Q48 -> 1293146.399 | U47: =$C46*U48 -> 1293146.399 | Y47: =$C46*Y48 -> 1293146.399 | AC47: =$C46*AC48 -> 1293146.399 | AG47: =$C46*AG48 -> 0 | AK47: =$C46*AK48 -> 0 | AO47: =$C46*AO48 -> 0 | AS47: =$C46*AS48 -> 0 | AW47: =$C46*AW48 -> 0 | BA47: =$C46*BA48 -> 0 | BE47: =$C46*BE48 -> 0 | BI47: =$C46*BI48 -> 0 | BM47: =$C46*BM48 -> 0 | BQ47: =$C46*BQ48 -> 0 | BU47: =$C46*BU48 -> 0 | BY47: =$C46*BY48 -> 0 | CC47: =$C46*CC48 -> 0 | CG47: =$C46*CG48 -> 0 | CK47: =$C46*CK48 -> 0 | CO47: =$C46*CO48 -> 0 | CS47: =$C46*CS48 -> 0 | CW47: =SUM(E47:CV47) -> 5172585.597 | CX47: =CW47=C46 -> TRUE
D48: % | Q48: =1/4 -> 0.25 | U48: =1/4 -> 0.25 | Y48: =1/4 -> 0.25 | AC48: =1/4 -> 0.25 | AK48: 0 | AO48: 0 | AS48: 0
A49: =LEFT(A46,1)+1&"." -> 9. | B49: =VLOOKUP(A49,Resumo!$C$21:$K$47,2,FALSE) -> REVESTIMENTO DE FORRO | C49: =Resumo!J30 -> 1988515.096 | D49: DURAÇÃO
D50: R$ | E50: =$C49*E51 -> 0 | I50: =$C49*I51 -> 0 | M50: =$C49*M51 -> 0 | Q50: =$C49*Q51 -> 0 | U50: =$C49*U51 -> 0 | Y50: =$C49*Y51 -> 331419.1826 | AC50: =$C49*AC51 -> 331419.1826 | AG50: =$C49*AG51 -> 331419.1826 | AK50: =$C49*AK51 -> 331419.1826 | AO50: =$C49*AO51 -> 331419.1826 | AS50: =$C49*AS51 -> 331419.1826 | AW50: =$C49*AW51 -> 0 | BA50: =$C49*BA51 -> 0 | BE50: =$C49*BE51 -> 0 | BI50: =$C49*BI51 -> 0 | BM50: =$C49*BM51 -> 0 | BQ50: =$C49*BQ51 -> 0 | BU50: =$C49*BU51 -> 0 | BY50: =$C49*BY51 -> 0 | CC50: =$C49*CC51 -> 0 | CG50: =$C49*CG51 -> 0 | CK50: =$C49*CK51 -> 0 | CO50: =$C49*CO51 -> 0 | CS50: =$C49*CS51 -> 0 | CW50: =SUM(E50:CV50) -> 1988515.096 | CX50: =CW50=C49 -> TRUE
D51: % | Y51: =1/6 -> 0.1666666667 | AC51: =1/6 -> 0.1666666667 | AG51: =1/6 -> 0.1666666667 | AK51: =1/6 -> 0.1666666667 | AO51: =1/6 -> 0.1666666667 | AS51: =1/6 -> 0.1666666667 | BA51: 0
A52: =LEFT(A49,1)+1&"." -> 10. | B52: =VLOOKUP(A52,Resumo!$C$21:$K$47,2,FALSE) -> REVESTIMENTO DE PAREDE | C52: =Resumo!J31 -> 6742346.654 | D52: DURAÇÃO
D53: R$ | E53: =$C52*E54 -> 0 | I53: =$C52*I54 -> 0 | M53: =$C52*M54 -> 0 | Q53: =$C52*Q54 -> 0 | U53: =$C52*U54 -> 0 | Y53: =$C52*Y54 -> 1123724.442 | AC53: =$C52*AC54 -> 1123724.442 | AG53: =$C52*AG54 -> 1123724.442 | AK53: =$C52*AK54 -> 1123724.442 | AO53: =$C52*AO54 -> 1123724.442 | AS53: =$C52*AS54 -> 1123724.442 | AW53: =$C52*AW54 -> 0 | BA53: =$C52*BA54 -> 0 | BE53: =$C52*BE54 -> 0 | BI53: =$C52*BI54 -> 0 | BM53: =$C52*BM54 -> 0 | BQ53: 0 | BU53: 0 | BY53: 0 | CC53: 0 | CG53: =$C52*CG54 -> 0 | CK53: =$C52*CK54 -> 0 | CO53: =$C52*CO54 -> 0 | CS53: =$C52*CS54 -> 0 | CW53: =SUM(E53:CV53) -> 6742346.654 | CX53: =CW53=C52 -> FALSE
D54: % | Y54: =1/6 -> 0.1666666667 | AC54: =1/6 -> 0.1666666667 | AG54: =1/6 -> 0.1666666667 | AK54: =1/6 -> 0.1666666667 | AO54: =1/6 -> 0.1666666667 | AS54: =1/6 -> 0.1666666667 | AW54: 0 | BA54: 0
A55: =LEFT(A52,2)+1&"." -> 11. | B55: =VLOOKUP(A55,Resumo!$C$21:$K$47,2,FALSE) -> REVESTIMENTO DE PISO | C55: =Resumo!J32 -> 8678618.276 | D55: DURAÇÃO
D56: R$ | E56: =$C55*E57 -> 0 | I56: =$C55*I57 -> 0 | M56: =$C55*M57 -> 0 | Q56: =$C55*Q57 -> 0 | U56: =$C55*U57 -> 0 | Y56: =$C55*Y57 -> 1446436.379 | AC56: =$C55*AC57 -> 1446436.379 | AG56: =$C55*AG57 -> 1446436.379 | AK56: =$C55*AK57 -> 1446436.379 | AO56: =$C55*AO57 -> 1446436.379 | AS56: =$C55*AS57 -> 1446436.379 | AW56: =$C55*AW57 -> 0 | BA56: =$C55*BA57 -> 0 | BE56: =$C55*BE57 -> 0 | BI56: =$C55*BI57 -> 0 | BM56: =$C55*BM57 -> 0 | BQ56: 0 | BU56: 0 | BY56: 0 | CC56: 0 | CG56: =$C55*CG57 -> 0 | CK56: =$C55*CK57 -> 0 | CO56: =$C55*CO57 -> 0 | CS56: =$C55*CS57 -> 0 | CW56: =SUM(E56:CV56) -> 8678618.276 | CX56: =CW56=C55 -> TRUE
D57: % | Y57: =1/6 -> 0.1666666667 | AC57: =1/6 -> 0.1666666667 | AG57: =1/6 -> 0.1666666667 | AK57: =1/6 -> 0.1666666667 | AO57: =1/6 -> 0.1666666667 | AS57: =1/6 -> 0.1666666667 | AW57: 0 | BA57: 0
A58: =LEFT(A55,2)+1&"." -> 12. | B58: =VLOOKUP(A58,Resumo!$C$21:$K$47,2,FALSE) -> REVESTIMENTO ESCADA | C58: =Resumo!J33 -> 6767.542999 | D58: DURAÇÃO
D59: R$ | E59: =$C58*E60 -> 0 | I59: =$C58*I60 -> 0 | M59: =$C58*M60 -> 0 | Q59: =$C58*Q60 -> 0 | U59: =$C58*U60 -> 0 | Y59: =$C58*Y60 -> 6767.542999 | AC59: =$C58*AC60 -> 0 | AG59: =$C58*AG60 -> 0 | AK59: =$C58*AK60 -> 0 | AO59: =$C58*AO60 -> 0 | AS59: =$C58*AS60 -> 0 | AW59: =$C58*AW60 -> 0 | BA59: =$C58*BA60 -> 0 | BE59: =$C58*BE60 -> 0 | BI59: =$C58*BI60 -> 0 | BM59: =$C58*BM60 -> 0 | BQ59: 0 | BU59: 0 | BY59: 0 | CC59: 0 | CG59: =$C58*CG60 -> 0 | CK59: =$C58*CK60 -> 0 | CO59: =$C58*CO60 -> 0 | CS59: =$C58*CS60 -> 0 | CW59: =SUM(E59:CV59) -> 6767.542999 | CX59: =CW59=C58 -> TRUE
D60: % | Y60: =1 -> 1 | AK60: 0
A61: =LEFT(A58,2)+1&"." -> 13. | B61: =VLOOKUP(A61,Resumo!$C$21:$K$47,2,FALSE) -> GUARDA-CORPO/CORRIMÃO | C61: =Resumo!J34 -> 2240170.858 | D61: DURAÇÃO
D62: R$ | E62: =$C61*E63 -> 0 | I62: =$C61*I63 -> 0 | M62: =$C61*M63 -> 0 | Q62: =$C61*Q63 -> 0 | U62: =$C61*U63 -> 0 | Y62: =$C61*Y63 -> 746723.6192 | AC62: =$C61*AC63 -> 746723.6192 | AG62: =$C61*AG63 -> 746723.6192 | AK62: =$C61*AK63 -> 0 | AO62: =$C61*AO63 -> 0 | AS62: =$C61*AS63 -> 0 | AW62: =$C61*AW63 -> 0 | BA62: =$C61*BA63 -> 0 | BE62: =$C61*BE63 -> 0 | BI62: =$C61*BI63 -> 0 | BM62: =$C61*BM63 -> 0 | BQ62: 0 | BU62: 0 | BY62: 0 | CC62: 0 | CG62: =$C61*CG63 -> 0 | CK62: =$C61*CK63 -> 0 | CO62: =$C61*CO63 -> 0 | CS62: =$C61*CS63 -> 0 | CW62: =SUM(E62:CV62) -> 2240170.858 | CX62: =CW62=C61 -> TRUE
D63: % | Y63: =1/3 -> 0.3333333333 | AC63: =1/3 -> 0.3333333333 | AG63: =1/3 -> 0.3333333333
A64: =LEFT(A61,2)+1&"." -> 14. | B64: =VLOOKUP(A64,Resumo!$C$21:$K$47,2,FALSE) -> INSTALAÇÕES | C64: =Resumo!J35 -> 28410135.76 | D64: DURAÇÃO
D65: R$ | E65: =$C64*E66 -> 0 | I65: =$C64*I66 -> 0 | M65: =$C64*M66 -> 0 | Q65: =$C64*Q66 -> 0 | U65: =$C64*U66 -> 4058590.823 | Y65: =$C64*Y66 -> 4058590.823 | AC65: =$C64*AC66 -> 4058590.823 | AG65: =$C64*AG66 -> 4058590.823 | AK65: =$C64*AK66 -> 4058590.823 | AO65: =$C64*AO66 -> 4058590.823 | AS65: =$C64*AS66 -> 4058590.823 | AW65: =$C64*AW66 -> 0 | BA65: =$C64*BA66 -> 0 | BE65: =$C64*BE66 -> 0 | BI65: =$C64*BI66 -> 0 | BM65: =$C64*BM66 -> 0 | BQ65: 0 | BU65: 0 | BY65: 0 | CC65: 0 | CG65: =$C64*CG66 -> 0 | CK65: =$C64*CK66 -> 0 | CO65: =$C64*CO66 -> 0 | CS65: =$C64*CS66 -> 0 | CW65: =SUM(E65:CV65) -> 28410135.76 | CX65: =CW65=C64 -> TRUE
D66: % | U66: =1/7 -> 0.1428571429 | Y66: =1/7 -> 0.1428571429 | AC66: =1/7 -> 0.1428571429 | AG66: =1/7 -> 0.1428571429 | AK66: =1/7 -> 0.1428571429 | AO66: =1/7 -> 0.1428571429 | AS66: =1/7 -> 0.1428571429
A67: =LEFT(A64,2)+1&"." -> 15. | B67: =VLOOKUP(A67,Resumo!$C$21:$K$47,2,FALSE) -> ELEVADORES | C67: =Resumo!J36 -> 3430779.071 | D67: DURAÇÃO
D68: R$ | E68: =$C67*E69 -> 0 | I68: =$C67*I69 -> 0 | M68: =$C67*M69 -> 0 | Q68: =$C67*Q69 -> 0 | U68: =$C67*U69 -> 0 | Y68: =$C67*Y69 -> 0 | AC68: =$C67*AC69 -> 0 | AG68: =$C67*AG69 -> 0 | AK68: =$C67*AK69 -> 0 | AO68: =$C67*AO69 -> 0 | AS68: =$C67*AS69 -> 0 | AW68: =$C67*AW69 -> 0 | BA68: =$C67*BA69 -> 3430779.071 | BE68: =$C67*BE69 -> 0 | BI68: =$C67*BI69 -> 0 | BM68: =$C67*BM69 -> 0 | BQ68: 0 | BU68: 0 | BY68: 0 | CC68: 0 | CG68: =$C67*CG69 -> 0 | CK68: =$C67*CK69 -> 0 | CO68: =$C67*CO69 -> 0 | CS68: =$C67*CS69 -> 0 | CW68: =SUM(E68:CV68) -> 3430779.071 | CX68: =CW68=C67 -> TRUE
D69: % | AG69: 0 | AK69: 0 | AO69: 0 | AS69: 0 | BA69: =1 -> 1
A70: =LEFT(A67,2)+1&"." -> 16. | B70: =VLOOKUP(A70,Resumo!$C$21:$K$47,2,FALSE) -> LOUÇAS/ BANCADAS/ METAIS/ ESPELHOS/ ACESSÓRIOS | C70: =Resumo!J37 -> 3225409.053 | D70: DURAÇÃO
D71: R$ | E71: =$C70*E72 -> 0 | I71: =$C70*I72 -> 0 | M71: =$C70*M72 -> 0 | Q71: =$C70*Q72 -> 0 | U71: =$C70*U72 -> 0 | Y71: =$C70*Y72 -> 0 | AC71: =$C70*AC72 -> 0 | AG71: =$C70*AG72 -> 0 | AK71: =$C70*AK72 -> 0 | AO71: =$C70*AO72 -> 0 | AS71: =$C70*AS72 -> 0 | AW71: =$C70*AW72 -> 1612704.527 | BA71: =$C70*BA72 -> 1612704.527 | BE71: =$C70*BE72 -> 0 | BI71: =$C70*BI72 -> 0 | BM71: =$C70*BM72 -> 0 | BQ71: 0 | BU71: 0 | BY71: 0 | CC71: 0 | CG71: =$C70*CG72 -> 0 | CK71: =$C70*CK72 -> 0 | CO71: =$C70*CO72 -> 0 | CS71: =$C70*CS72 -> 0 | CW71: =SUM(E71:CV71) -> 3225409.053 | CX71: =CW71=C70 -> TRUE
D72: % | AW72: =1/2 -> 0.5 | BA72: =1/2 -> 0.5
A73: =LEFT(A70,2)+1&"." -> 17. | B73: =VLOOKUP(A73,Resumo!$C$21:$K$47,2,FALSE) -> EQUIPAMENTOS E CONTROLE DE ACESSO | C73: =Resumo!J38 -> 624545.4918 | D73: DURAÇÃO
D74: R$ | E74: =$C73*E75 -> 0 | I74: =$C73*I75 -> 0 | M74: =$C73*M75 -> 0 | Q74: =$C73*Q75 -> 0 | U74: =$C73*U75 -> 0 | Y74: =$C73*Y75 -> 0 | AC74: =$C73*AC75 -> 0 | AG74: =$C73*AG75 -> 0 | AK74: =$C73*AK75 -> 0 | AO74: =$C73*AO75 -> 0 | AS74: =$C73*AS75 -> 0 | AW74: =$C73*AW75 -> 0 | BA74: =$C73*BA75 -> 624545.4918 | BE74: =$C73*BE75 -> 0 | BI74: =$C73*BI75 -> 0 | BM74: =$C73*BM75 -> 0 | BQ74: 0 | BU74: 0 | BY74: 0 | CC74: 0 | CG74: =$C73*CG75 -> 0 | CK74: =$C73*CK75 -> 0 | CO74: =$C73*CO75 -> 0 | CS74: =$C73*CS75 -> 0 | CW74: =SUM(E74:CV74) -> 624545.4918 | CX74: =CW74=C73 -> TRUE
D75: % | BA75: =1 -> 1
A76: =LEFT(A73,2)+1&"." -> 18. | B76: =VLOOKUP(A76,Resumo!$C$21:$K$47,2,FALSE) -> PAISAGISMO | C76: =Resumo!J39 -> 236035.7213 | D76: DURAÇÃO
D77: R$ | E77: =$C76*E78 -> 0 | I77: =$C76*I78 -> 0 | M77: =$C76*M78 -> 0 | Q77: =$C76*Q78 -> 0 | U77: =$C76*U78 -> 0 | Y77: =$C76*Y78 -> 0 | AC77: =$C76*AC78 -> 0 | AG77: =$C76*AG78 -> 0 | AK77: =$C76*AK78 -> 0 | AO77: =$C76*AO78 -> 0 | AS77: =$C76*AS78 -> 0 | AW77: =$C76*AW78 -> 0 | BA77: =$C76*BA78 -> 236035.7213 | BE77: =$C76*BE78 -> 0 | BI77: =$C76*BI78 -> 0 | BM77: =$C76*BM78 -> 0 | BQ77: 0 | BU77: 0 | BY77: 0 | CC77: 0 | CG77: =$C76*CG78 -> 0 | CK77: =$C76*CK78 -> 0 | CO77: =$C76*CO78 -> 0 | CS77: =$C76*CS78 -> 0 | CW77: =SUM(E77:CV77) -> 236035.7213 | CX77: =CW77=C76 -> TRUE
D78: % | Y78: 0 | AC78: 0 | AG78: 0 | AW78: 0 | BA78: =1 -> 1 | BE78: 0
A79: =LEFT(A76,2)+1&"." -> 19. | B79: =VLOOKUP(A79,Resumo!$C$21:$K$47,2,FALSE) -> COMUNICAÇÃO VISUAL | C79: =Resumo!J40 -> 217325.553 | D79: DURAÇÃO
D80: R$ | E80: =$C79*E81 -> 0 | I80: =$C79*I81 -> 0 | M80: =$C79*M81 -> 0 | Q80: =$C79*Q81 -> 0 | U80: =$C79*U81 -> 0 | Y80: =$C79*Y81 -> 0 | AC80: =$C79*AC81 -> 0 | AG80: =$C79*AG81 -> 0 | AK80: =$C79*AK81 -> 0 | AO80: =$C79*AO81 -> 0 | AS80: =$C79*AS81 -> 0 | AW80: =$C79*AW81 -> 0 | BA80: =$C79*BA81 -> 217325.553 | BE80: =$C79*BE81 -> 0 | BI80: =$C79*BI81 -> 0 | BM80: =$C79*BM81 -> 0 | BQ80: =$C79*BQ81 -> 0 | BU80: =$C79*BU81 -> 0 | BY80: =$C79*BY81 -> 0 | CC80: =$C79*CC81 -> 0 | CG80: =$C79*CG81 -> 0 | CK80: =$C79*CK81 -> 0 | CO80: =$C79*CO81 -> 0 | CS80: =$C79*CS81 -> 0 | CW80: =SUM(E80:CV80) -> 217325.553 | CX80: =CW80=C79 -> TRUE
D81: % | AS81: 0 | AW81: 0 | BA81: =1 -> 1 | BE81: 0
A82: =LEFT(A79,2)+1&"." -> 20. | B82: =VLOOKUP(A82,Resumo!$C$21:$K$47,2,FALSE) -> MOBILIÁRIO | C82: =Resumo!J41 -> 13123956.52 | D82: DURAÇÃO
D83: R$ | E83: =$C82*E84 -> 0 | I83: =$C82*I84 -> 0 | M83: =$C82*M84 -> 0 | Q83: =$C82*Q84 -> 0 | U83: =$C82*U84 -> 0 | Y83: =$C82*Y84 -> 0 | AC83: =$C82*AC84 -> 0 | AG83: =$C82*AG84 -> 0 | AK83: =$C82*AK84 -> 0 | AO83: =$C82*AO84 -> 0 | AS83: =$C82*AS84 -> 0 | AW83: =$C82*AW84 -> 6561978.26 | BA83: =$C82*BA84 -> 6561978.26 | BE83: =$C82*BE84 -> 0 | BI83: =$C82*BI84 -> 0 | BM83: =$C82*BM84 -> 0 | BQ83: =$C82*BQ84 -> 0 | BU83: =$C82*BU84 -> 0 | BY83: =$C82*BY84 -> 0 | CC83: =$C82*CC84 -> 0 | CG83: =$C82*CG84 -> 0 | CK83: =$C82*CK84 -> 0 | CO83: =$C82*CO84 -> 0 | CS83: =$C82*CS84 -> 0 | CW83: =SUM(E83:CV83) -> 13123956.52 | CX83: =CW83=C82 -> TRUE
D84: % | AW84: =1/2 -> 0.5 | BA84: =1/2 -> 0.5
A85: =LEFT(A82,2)+1&"." -> 21. | B85: =VLOOKUP(A85,Resumo!$C$21:$K$47,2,FALSE) -> AS BUILT | C85: =Resumo!J42 -> 27448.998 | D85: DURAÇÃO
D86: R$ | E86: =$C85*E87 -> 0 | I86: =$C85*I87 -> 0 | M86: =$C85*M87 -> 0 | Q86: =$C85*Q87 -> 0 | U86: =$C85*U87 -> 0 | Y86: =$C85*Y87 -> 0 | AC86: =$C85*AC87 -> 0 | AG86: =$C85*AG87 -> 0 | AK86: =$C85*AK87 -> 0 | AO86: =$C85*AO87 -> 0 | AS86: =$C85*AS87 -> 0 | AW86: =$C85*AW87 -> 13724.499 | BA86: =$C85*BA87 -> 13724.499 | BE86: =$C85*BE87 -> 0 | BI86: =$C85*BI87 -> 0 | BM86: =$C85*BM87 -> 0 | BQ86: =$C85*BQ87 -> 0 | BU86: =$C85*BU87 -> 0 | BY86: =$C85*BY87 -> 0 | CC86: =$C85*CC87 -> 0 | CG86: =$C85*CG87 -> 0 | CK86: =$C85*CK87 -> 0 | CO86: =$C85*CO87 -> 0 | CS86: =$C85*CS87 -> 0 | CW86: =SUM(E86:CV86) -> 27448.998 | CX86: =CW86=C85 -> TRUE
D87: % | AS87: 0 | AW87: =1/2 -> 0.5 | BA87: =1/2 -> 0.5 | BE87: 0
A88: =LEFT(A85,2)+1&"." -> 22. | B88: =VLOOKUP(A88,Resumo!$C$21:$K$47,2,FALSE) -> SERVIÇOS FINAIS | C88: =Resumo!J43 -> 493578.3127 | D88: DURAÇÃO
D89: R$ | E89: =$C88*E90 -> 0 | I89: =$C88*I90 -> 0 | M89: =$C88*M90 -> 0 | Q89: =$C88*Q90 -> 0 | U89: =$C88*U90 -> 0 | Y89: =$C88*Y90 -> 0 | AC89: =$C88*AC90 -> 0 | AG89: =$C88*AG90 -> 0 | AK89: =$C88*AK90 -> 0 | AO89: =$C88*AO90 -> 0 | AS89: =$C88*AS90 -> 0 | AW89: =$C88*AW90 -> 246789.1563 | BA89: =$C88*BA90 -> 246789.1563 | BE89: =$C88*BE90 -> 0 | BI89: =$C88*BI90 -> 0 | BM89: =$C88*BM90 -> 0 | BQ89: =$C88*BQ90 -> 0 | BU89: =$C88*BU90 -> 0 | BY89: =$C88*BY90 -> 0 | CC89: =$C88*CC90 -> 0 | CG89: =$C88*CG90 -> 0 | CK89: =$C88*CK90 -> 0 | CO89: =$C88*CO90 -> 0 | CS89: =$C88*CS90 -> 0 | CW89: =SUM(E89:CV89) -> 493578.3127 | CX89: =CW89=C88 -> TRUE
D90: % | AW90: =1/2 -> 0.5 | BA90: =1/2 -> 0.5
B91: =Resumo!C44 -> FASE 02 - BOULEVARD | C91: =IFERROR(VLOOKUP(A91,Resumo!$C$21:$K$77,8,FALSE),"") ->  | D91: DURAÇÃO
D92: R$ | E92: =IFERROR($C91*E93,0) -> 0 | I92: =IFERROR($C91*I93,0) -> 0 | M92: =IFERROR($C91*M93,0) -> 0 | Q92: =IFERROR($C91*Q93,0) -> 0 | U92: =IFERROR($C91*U93,0) -> 0 | Y92: =IFERROR($C91*Y93,0) -> 0 | AC92: =IFERROR($C91*AC93,0) -> 0 | AG92: =IFERROR($C91*AG93,0) -> 0 | AK92: =IFERROR($C91*AK93,0) -> 0 | AO92: =IFERROR($C91*AO93,0) -> 0 | AS92: =IFERROR($C91*AS93,0) -> 0 | AW92: =IFERROR($C91*AW93,0) -> 0 | BA92: =IFERROR($C91*BA93,0) -> 0 | BE92: =IFERROR($C91*BE93,0) -> 0 | BI92: =IFERROR($C91*BI93,0) -> 0 | BM92: =IFERROR($C91*BM93,0) -> 0 | BQ92: =IFERROR($C91*BQ93,0) -> 0 | BU92: =IFERROR($C91*BU93,0) -> 0 | BY92: =IFERROR($C91*BY93,0) -> 0 | CC92: =IFERROR($C91*CC93,0) -> 0 | CG92: =IFERROR($C91*CG93,0) -> 0 | CK92: =IFERROR($C91*CK93,0) -> 0 | CO92: =IFERROR($C91*CO93,0) -> 0 | CS92: =IFERROR($C91*CS93,0) -> 0 | CW92: =SUM(E92:CV92) -> 0 | CX92: =CW92=C91 -> FALSE
D93: % | CW93: =SUM(E93:CV93) -> 0 | CX93: =CW93=100% -> FALSE
A94: 1. | B94: =VLOOKUP(A94,Resumo!$C$44:$K$77,2,FALSE) -> ADMINISTRAÇÃO LOCAL | C94: =Resumo!J45 -> 1555213.333 | D94: DURAÇÃO
D95: R$ | E95: =$C94*E96 -> 0 | I95: =$C94*I96 -> 0 | M95: =$C94*M96 -> 0 | Q95: =$C94*Q96 -> 0 | U95: =$C94*U96 -> 0 | Y95: =$C94*Y96 -> 0 | AC95: =$C94*AC96 -> 0 | AG95: =$C94*AG96 -> 0 | AK95: =$C94*AK96 -> 41383.06925 | AO95: =$C94*AO96 -> 376965.4213 | AS95: =$C94*AS96 -> 376965.4213 | AW95: =$C94*AW96 -> 335582.3521 | BA95: =$C94*BA96 -> 335582.3521 | BE95: =$C94*BE96 -> 88734.71744 | BI95: =$C94*BI96 -> 0 | BM95: =$C94*BM96 -> 0 | BQ95: =$C94*BQ96 -> 0 | BU95: =$C94*BU96 -> 0 | BY95: =$C94*BY96 -> 0 | CC95: =$C94*CC96 -> 0 | CG95: =$C94*CG96 -> 0 | CK95: =$C94*CK96 -> 0 | CO95: =$C94*CO96 -> 0 | CS95: =$C94*CS96 -> 0 | CW95: =SUM(E95:CV95) -> 1555213.333 | CX95: =CW95=C94 -> TRUE
D96: % | AK96: =(AK98+AK101+AK104+AK107+AK110)/(Resumo!$J$44-Resumo!$J$45) -> 0.02660925569 | AO96: =(AO98+AO101+AO104+AO107+AO110)/(Resumo!$J$44-Resumo!$J$45) -> 0.2423882391 | AS96: =(AS98+AS101+AS104+AS107+AS110)/(Resumo!$J$44-Resumo!$J$45) -> 0.2423882391 | AW96: =(AW98+AW101+AW104+AW107+AW110)/(Resumo!$J$44-Resumo!$J$45) -> 0.2157789834 | BA96: =(BA98+BA101+BA104+BA107+BA110)/(Resumo!$J$44-Resumo!$J$45) -> 0.2157789834 | BE96: =(BE98+BE101+BE104+BE107+BE110)/(Resumo!$J$44-Resumo!$J$45) -> 0.05705629931 | CW96: =SUM(E96:CV96) -> 1 | CX96: =CW96=100% -> TRUE
A97: =LEFT(A94,1)+1&"." -> 2. | B97: =VLOOKUP(A97,Resumo!$C$44:$K$77,2,FALSE) -> SERVIÇOS INICIAIS | C97: =Resumo!J46 -> 176628.013 | D97: DURAÇÃO
D98: R$ | E98: =$C97*E99 -> 0 | I98: =$C97*I99 -> 0 | M98: =$C97*M99 -> 0 | Q98: =$C97*Q99 -> 0 | U98: =$C97*U99 -> 0 | Y98: =$C97*Y99 -> 0 | AC98: =$C97*AC99 -> 0 | AG98: =$C97*AG99 -> 0 | AK98: =$C97*AK99 -> 58876.00434 | AO98: =$C97*AO99 -> 58876.00434 | AS98: =$C97*AS99 -> 58876.00434 | AW98: =$C97*AW99 -> 0 | BA98: =$C97*BA99 -> 0 | BE98: =$C97*BE99 -> 0 | BI98: =$C97*BI99 -> 0 | BM98: =$C97*BM99 -> 0 | BQ98: =$C97*BQ99 -> 0 | BU98: =$C97*BU99 -> 0 | BY98: =$C97*BY99 -> 0 | CC98: =$C97*CC99 -> 0 | CG98: =$C97*CG99 -> 0 | CK98: =$C97*CK99 -> 0 | CO98: =$C97*CO99 -> 0 | CS98: =$C97*CS99 -> 0 | CW98: =SUM(E98:CV98) -> 176628.013 | CX98: =CW98=C97 -> TRUE
D99: % | AK99: =1/3 -> 0.3333333333 | AO99: =1/3 -> 0.3333333333 | AS99: =1/3 -> 0.3333333333 | CW99: =SUM(E99:CV99) -> 1 | CX99: =CW99=100% -> TRUE
A100: =LEFT(A97,1)+1&"." -> 3. | B100: =VLOOKUP(A100,Resumo!$C$44:$K$77,2,FALSE) -> INFRAESTRUTURA | C100: =Resumo!J47 -> 1909742.161 | D100: DURAÇÃO
D101: R$ | E101: =$C100*E102 -> 0 | I101: =$C100*I102 -> 0 | M101: =$C100*M102 -> 0 | Q101: =$C100*Q102 -> 0 | U101: =$C100*U102 -> 0 | Y101: =$C100*Y102 -> 0 | AC101: =$C100*AC102 -> 0 | AG101: =$C100*AG102 -> 0 | AK101: =$C100*AK102 -> 0 | AO101: =$C100*AO102 -> 477435.5401 | AS101: =$C100*AS102 -> 477435.5401 | AW101: =$C100*AW102 -> 477435.5401 | BA101: =$C100*BA102 -> 477435.5401 | BE101: =$C100*BE102 -> 0 | BI101: =$C100*BI102 -> 0 | BM101: =$C100*BM102 -> 0 | BQ101: =$C100*BQ102 -> 0 | BU101: =$C100*BU102 -> 0 | BY101: =$C100*BY102 -> 0 | CC101: =$C100*CC102 -> 0 | CG101: =$C100*CG102 -> 0 | CK101: =$C100*CK102 -> 0 | CO101: =$C100*CO102 -> 0 | CS101: =$C100*CS102 -> 0 | CW101: =SUM(E101:CV101) -> 1909742.161 | CX101: =CW101=C100 -> TRUE
D102: % | AO102: =1/4 -> 0.25 | AS102: =1/4 -> 0.25 | AW102: =1/4 -> 0.25 | BA102: =1/4 -> 0.25 | CW102: =SUM(E102:CV102) -> 1 | CX102: =CW102=100% -> TRUE
A103: =LEFT(A100,1)+1&"." -> 4. | B103: =VLOOKUP(A103,Resumo!$C$44:$K$77,2,FALSE) -> PAISAGISMO | C103: =Resumo!J48 -> 95313.73261 | D103: DURAÇÃO
D104: R$ | E104: =$C103*E105 -> 0 | I104: =$C103*I105 -> 0 | M104: =$C103*M105 -> 0 | Q104: =$C103*Q105 -> 0 | U104: =$C103*U105 -> 0 | Y104: =$C103*Y105 -> 0 | AC104: =$C103*AC105 -> 0 | AG104: =$C103*AG105 -> 0 | AK104: =$C103*AK105 -> 0 | AO104: =$C103*AO105 -> 0 | AS104: =$C103*AS105 -> 0 | AW104: =$C103*AW105 -> 0 | BA104: =$C103*BA105 -> 0 | BE104: =$C103*BE105 -> 95313.73261 | BI104: =$C103*BI105 -> 0 | BM104: =$C103*BM105 -> 0 | BQ104: =$C103*BQ105 -> 0 | BU104: =$C103*BU105 -> 0 | BY104: =$C103*BY105 -> 0 | CC104: =$C103*CC105 -> 0 | CG104: =$C103*CG105 -> 0 | CK104: =$C103*CK105 -> 0 | CO104: =$C103*CO105 -> 0 | CS104: =$C103*CS105 -> 0 | CW104: =SUM(E104:CV104) -> 95313.73261 | CX104: =CW104=C103 -> TRUE
D105: % | AW105: 0 | BA105: 0 | BE105: =1 -> 1 | CW105: =SUM(E105:CV105) -> 1 | CX105: =CW105=100% -> TRUE
A106: =LEFT(A103,1)+1&"." -> 5. | B106: =VLOOKUP(A106,Resumo!$C$44:$K$77,2,FALSE) -> COMUNICAÇÃO VISUAL | C106: =Resumo!J49 -> 27461.35102 | D106: DURAÇÃO
D107: R$ | E107: =$C106*E108 -> 0 | I107: =$C106*I108 -> 0 | M107: =$C106*M108 -> 0 | Q107: =$C106*Q108 -> 0 | U107: =$C106*U108 -> 0 | Y107: =$C106*Y108 -> 0 | AC107: =$C106*AC108 -> 0 | AG107: =$C106*AG108 -> 0 | AK107: =$C106*AK108 -> 0 | AO107: =$C106*AO108 -> 0 | AS107: =$C106*AS108 -> 0 | AW107: =$C106*AW108 -> 0 | BA107: =$C106*BA108 -> 0 | BE107: =$C106*BE108 -> 27461.35102 | BI107: =$C106*BI108 -> 0 | BM107: =$C106*BM108 -> 0 | BQ107: =$C106*BQ108 -> 0 | BU107: =$C106*BU108 -> 0 | BY107: =$C106*BY108 -> 0 | CC107: =$C106*CC108 -> 0 | CG107: =$C106*CG108 -> 0 | CK107: =$C106*CK108 -> 0 | CO107: =$C106*CO108 -> 0 | CS107: =$C106*CS108 -> 0 | CW107: =SUM(E107:CV107) -> 27461.35102 | CX107: =CW107=C106 -> TRUE
D108: % | AS108: 0 | AW108: 0 | BE108: =1 -> 1 | CW108: =SUM(E108:CV108) -> 1 | CX108: =CW108=100% -> TRUE
A109: =LEFT(A106,1)+1&"." -> 6. | B109: =VLOOKUP(A109,Resumo!$C$44:$K$77,2,FALSE) -> AS BUILT | C109: =Resumo!J50 -> 3468.467279 | D109: DURAÇÃO
D110: R$ | E110: =$C109*E111 -> 0 | I110: =$C109*I111 -> 0 | M110: =$C109*M111 -> 0 | Q110: =$C109*Q111 -> 0 | U110: =$C109*U111 -> 0 | Y110: =$C109*Y111 -> 0 | AC110: =$C109*AC111 -> 0 | AG110: =$C109*AG111 -> 0 | AK110: =$C109*AK111 -> 0 | AO110: =$C109*AO111 -> 0 | AS110: =$C109*AS111 -> 0 | AW110: =$C109*AW111 -> 0 | BA110: =$C109*BA111 -> 0 | BE110: =$C109*BE111 -> 3468.467279 | BI110: =$C109*BI111 -> 0 | BM110: =$C109*BM111 -> 0 | BQ110: =$C109*BQ111 -> 0 | BU110: =$C109*BU111 -> 0 | BY110: =$C109*BY111 -> 0 | CC110: =$C109*CC111 -> 0 | CG110: =$C109*CG111 -> 0 | CK110: =$C109*CK111 -> 0 | CO110: =$C109*CO111 -> 0 | CS110: =$C109*CS111 -> 0 | CW110: =SUM(E110:CV110) -> 3468.467279 | CX110: =CW110=C109 -> TRUE
D111: % | AS111: 0 | AW111: 0 | BE111: =1 -> 1 | CW111: =SUM(E111:CV111) -> 1 | CX111: =CW111=100% -> TRUE
B112: =Resumo!C51 -> FASE 03 - EDIFÍCIO CORPORATIVO | C112: =IFERROR(VLOOKUP(A112,Resumo!$C$44:$K$77,8,FALSE),"") ->  | D112: DURAÇÃO
D113: R$ | E113: =IFERROR($C112*E114,0) -> 0 | I113: =IFERROR($C112*I114,0) -> 0 | M113: =IFERROR($C112*M114,0) -> 0 | Q113: =IFERROR($C112*Q114,0) -> 0 | U113: =IFERROR($C112*U114,0) -> 0 | Y113: =IFERROR($C112*Y114,0) -> 0 | AC113: =IFERROR($C112*AC114,0) -> 0 | AG113: =IFERROR($C112*AG114,0) -> 0 | AK113: =IFERROR($C112*AK114,0) -> 0 | AO113: =IFERROR($C112*AO114,0) -> 0 | AS113: =IFERROR($C112*AS114,0) -> 0 | AW113: =IFERROR($C112*AW114,0) -> 0 | BA113: =IFERROR($C112*BA114,0) -> 0 | BE113: =IFERROR($C112*BE114,0) -> 0 | BI113: =IFERROR($C112*BI114,0) -> 0 | BM113: =IFERROR($C112*BM114,0) -> 0 | BQ113: =IFERROR($C112*BQ114,0) -> 0 | BU113: =IFERROR($C112*BU114,0) -> 0 | BY113: =IFERROR($C112*BY114,0) -> 0 | CC113: =IFERROR($C112*CC114,0) -> 0 | CG113: =IFERROR($C112*CG114,0) -> 0 | CK113: =IFERROR($C112*CK114,0) -> 0 | CO113: =IFERROR($C112*CO114,0) -> 0 | CS113: =IFERROR($C112*CS114,0) -> 0 | CW113: =SUM(E113:CV113) -> 0 | CX113: =CW113=C112 -> FALSE
D114: % | CW114: =SUM(E114:CV114) -> 0 | CX114: =CW114=100% -> FALSE
A115: 1. | B115: =VLOOKUP(A115,Resumo!$C$51:$K$77,2,FALSE) -> ADMINISTRAÇÃO LOCAL | C115: =Resumo!J52 -> 10888493.93 | D115: DURAÇÃO
D116: R$ | E116: =$C115*E117 -> 144540.1174 | I116: =$C115*I117 -> 144540.1174 | M116: =$C115*M117 -> 144540.1174 | Q116: =$C115*Q117 -> 209511.2132 | U116: =$C115*U117 -> 703431.0243 | Y116: =$C115*Y117 -> 760390.2155 | AC116: =$C115*AC117 -> 842516.2232 | AG116: =$C115*AG117 -> 792125.02 | AK116: =$C115*AK117 -> 846050.0704 | AO116: =$C115*AO117 -> 831498.3547 | AS116: =$C115*AS117 -> 831498.3547 | AW116: =$C115*AW117 -> 831498.3547 | BA116: =$C115*BA117 -> 590951.0901 | BE116: =$C115*BE117 -> 590951.0901 | BI116: =$C115*BI117 -> 615424.1814 | BM116: =$C115*BM117 -> 511482.3538 | BQ116: =$C115*BQ117 -> 288533.4764 | BU116: =$C115*BU117 -> 263056.6048 | BY116: =$C115*BY117 -> 296049.9176 | CC116: =$C115*CC117 -> 128249.2794 | CG116: =$C115*CG117 -> 521656.7553 | CK116: =$C115*CK117 -> 0 | CO116: =$C115*CO117 -> 0 | CS116: =$C115*CS117 -> 0 | CW116: =SUM(E116:CV116) -> 10888493.93 | CX116: =CW116=C115 -> TRUE
D117: % | E117: =(E119+E122+E125+E128+E131+E134+E137+E140+E143+E146+E149+E152+E155+E158+E161+E164+E167+E170+E173+E176+E179+E182+E185+E188)/(Resumo!$J$51-Resumo!$J$52) -> 0.0132745739 | I117: =(I119+I122+I125+I128+I131+I134+I137+I140+I143+I146+I149+I152+I155+I158+I161+I164+I167+I170+I173+I176+I179+I182+I185+I188)/(Resumo!$J$51-Resumo!$J$52) -> 0.0132745739 | M117: =(M119+M122+M125+M128+M131+M134+M137+M140+M143+M146+M149+M152+M155+M158+M161+M164+M167+M170+M173+M176+M179+M182+M185+M188)/(Resumo!$J$51-Resumo!$J$52) -> 0.0132745739 | Q117: =(Q119+Q122+Q125+Q128+Q131+Q134+Q137+Q140+Q143+Q146+Q149+Q152+Q155+Q158+Q161+Q164+Q167+Q170+Q173+Q176+Q179+Q182+Q185+Q188)/(Resumo!$J$51-Resumo!$J$52) -> 0.01924152362 | U117: =(U119+U122+U125+U128+U131+U134+U137+U140+U143+U146+U149+U152+U155+U158+U161+U164+U167+U170+U173+U176+U179+U182+U185+U188)/(Resumo!$J$51-Resumo!$J$52) -> 0.06460315161 | Y117: =(Y119+Y122+Y125+Y128+Y131+Y134+Y137+Y140+Y143+Y146+Y149+Y152+Y155+Y158+Y161+Y164+Y167+Y170+Y173+Y176+Y179+Y182+Y185+Y188)/(Resumo!$J$51-Resumo!$J$52) -> 0.06983428748 | AC117: =(AC119+AC122+AC125+AC128+AC131+AC134+AC137+AC140+AC143+AC146+AC149+AC152+AC155+AC158+AC161+AC164+AC167+AC170+AC173+AC176+AC179+AC182+AC185+AC188)/(Resumo!$J$51-Resumo!$J$52) -> 0.07737674545 | AG117: =(AG119+AG122+AG125+AG128+AG131+AG134+AG137+AG140+AG143+AG146+AG149+AG152+AG155+AG158+AG161+AG164+AG167+AG170+AG173+AG176+AG179+AG182+AG185+AG188)/(Resumo!$J$51-Resumo!$J$52) -> 0.07274881402 | AK117: =(AK119+AK122+AK125+AK128+AK131+AK134+AK137+AK140+AK143+AK146+AK149+AK152+AK155+AK158+AK161+AK164+AK167+AK170+AK173+AK176+AK179+AK182+AK185+AK188)/(Resumo!$J$51-Resumo!$J$52) -> 0.0777012942 | AO117: =(AO119+AO122+AO125+AO128+AO131+AO134+AO137+AO140+AO143+AO146+AO149+AO152+AO155+AO158+AO161+AO164+AO167+AO170+AO173+AO176+AO179+AO182+AO185+AO188)/(Resumo!$J$51-Resumo!$J$52) -> 0.07636486367 | AS117: =(AS119+AS122+AS125+AS128+AS131+AS134+AS137+AS140+AS143+AS146+AS149+AS152+AS155+AS158+AS161+AS164+AS167+AS170+AS173+AS176+AS179+AS182+AS185+AS188)/(Resumo!$J$51-Resumo!$J$52) -> 0.07636486367 | AW117: =(AW119+AW122+AW125+AW128+AW131+AW134+AW137+AW140+AW143+AW146+AW149+AW152+AW155+AW158+AW161+AW164+AW167+AW170+AW173+AW176+AW179+AW182+AW185+AW188)/(Resumo!$J$51-Resumo!$J$52) -> 0.07636486367 | BA117: =(BA119+BA122+BA125+BA128+BA131+BA134+BA137+BA140+BA143+BA146+BA149+BA152+BA155+BA158+BA161+BA164+BA167+BA170+BA173+BA176+BA179+BA182+BA185+BA188)/(Resumo!$J$51-Resumo!$J$52) -> 0.05427298705 | BE117: =(BE119+BE122+BE125+BE128+BE131+BE134+BE137+BE140+BE143+BE146+BE149+BE152+BE155+BE158+BE161+BE164+BE167+BE170+BE173+BE176+BE179+BE182+BE185+BE188)/(Resumo!$J$51-Resumo!$J$52) -> 0.05427298705 | BI117: =(BI119+BI122+BI125+BI128+BI131+BI134+BI137+BI140+BI143+BI146+BI149+BI152+BI155+BI158+BI161+BI164+BI167+BI170+BI173+BI176+BI179+BI182+BI185+BI188)/(Resumo!$J$51-Resumo!$J$52) -> 0.05652059736 | BM117: =(BM119+BM122+BM125+BM128+BM131+BM134+BM137+BM140+BM143+BM146+BM149+BM152+BM155+BM158+BM161+BM164+BM167+BM170+BM173+BM176+BM179+BM182+BM185+BM188)/(Resumo!$J$51-Resumo!$J$52) -> 0.04697457307 | BQ117: =(BQ119+BQ122+BQ125+BQ128+BQ131+BQ134+BQ137+BQ140+BQ143+BQ146+BQ149+BQ152+BQ155+BQ158+BQ161+BQ164+BQ167+BQ170+BQ173+BQ176+BQ179+BQ182+BQ185+BQ188)/(Resumo!$J$51-Resumo!$J$52) -> 0.02649893348 | BU117: =(BU119+BU122+BU125+BU128+BU131+BU134+BU137+BU140+BU143+BU146+BU149+BU152+BU155+BU158+BU161+BU164+BU167+BU170+BU173+BU176+BU179+BU182+BU185+BU188)/(Resumo!$J$51-Resumo!$J$52) -> 0.02415913591 | BY117: =(BY119+BY122+BY125+BY128+BY131+BY134+BY137+BY140+BY143+BY146+BY149+BY152+BY155+BY158+BY161+BY164+BY167+BY170+BY173+BY176+BY179+BY182+BY185+BY188)/(Resumo!$J$51-Resumo!$J$52) -> 0.02718924394 | CC117: =(CC119+CC122+CC125+CC128+CC131+CC134+CC137+CC140+CC143+CC146+CC149+CC152+CC155+CC158+CC161+CC164+CC167+CC170+CC173+CC176+CC179+CC182+CC185+CC188)/(Resumo!$J$51-Resumo!$J$52) -> 0.01177842227 | CG117: =(CG119+CG122+CG125+CG128+CG131+CG134+CG137+CG140+CG143+CG146+CG149+CG152+CG155+CG158+CG161+CG164+CG167+CG170+CG173+CG176+CG179+CG182+CG185+CG188)/(Resumo!$J$51-Resumo!$J$52) -> 0.04790899077 | CK117: =(CK119+CK122+CK125+CK128+CK131+CK134+CK137+CK140+CK143+CK146+CK149+CK152+CK155+CK158+CK161+CK164+CK167+CK170+CK173+CK176+CK179+CK182+CK185+CK188)/(Resumo!$J$51-Resumo!$J$52) -> 0 | CO117: =(CO119+CO122+CO125+CO128+CO131+CO134+CO137+CO140+CO143+CO146+CO149+CO152+CO155+CO158+CO161+CO164+CO167+CO170+CO173+CO176+CO179+CO182+CO185+CO188)/(Resumo!$J$51-Resumo!$J$52) -> 0 | CS117: =(CS119+CS122+CS125+CS128+CS131+CS134+CS137+CS140+CS143+CS146+CS149+CS152+CS155+CS158+CS161+CS164+CS167+CS170+CS173+CS176+CS179+CS182+CS185+CS188)/(Resumo!$J$51-Resumo!$J$52) -> 0 | CW117: =SUM(E117:CV117) -> 1 | CX117: =CW117=100% -> TRUE
A118: =LEFT(A115,1)+1&"." -> 2. | B118: =VLOOKUP(A118,Resumo!$C$51:$K$77,2,FALSE) -> SERVIÇOS INICIAIS | C118: =Resumo!J53 -> 14810661.75 | D118: DURAÇÃO
D119: R$ | E119: =$C118*E120 -> 2115808.822 | I119: =$C118*I120 -> 2115808.822 | M119: =$C118*M120 -> 2115808.822 | Q119: =$C118*Q120 -> 2115808.822 | U119: =$C118*U120 -> 2115808.822 | Y119: =$C118*Y120 -> 2115808.822 | AC119: =$C118*AC120 -> 2115808.822 | AG119: =$C118*AG120 -> 0 | AK119: =$C118*AK120 -> 0 | AO119: =$C118*AO120 -> 0 | AS119: =$C118*AS120 -> 0 | AW119: =$C118*AW120 -> 0 | BA119: =$C118*BA120 -> 0 | BE119: =$C118*BE120 -> 0 | BI119: =$C118*BI120 -> 0 | BM119: =$C118*BM120 -> 0 | BQ119: =$C118*BQ120 -> 0 | BU119: =$C118*BU120 -> 0 | BY119: =$C118*BY120 -> 0 | CC119: =$C118*CC120 -> 0 | CG119: =$C118*CG120 -> 0 | CK119: =$C118*CK120 -> 0 | CO119: =$C118*CO120 -> 0 | CS119: =$C118*CS120 -> 0 | CW119: =SUM(E119:CV119) -> 14810661.75 | CX119: =CW119=C118 -> TRUE
D120: % | E120: =1/7 -> 0.1428571429 | I120: =1/7 -> 0.1428571429 | M120: =1/7 -> 0.1428571429 | Q120: =1/7 -> 0.1428571429 | U120: =1/7 -> 0.1428571429 | Y120: =1/7 -> 0.1428571429 | AC120: =1/7 -> 0.1428571429 | CW120: =SUM(E120:CV120) -> 1 | CX120: =CW120=100% -> TRUE
A121: =LEFT(A118,1)+1&"." -> 3. | B121: =VLOOKUP(A121,Resumo!$C$51:$K$77,2,FALSE) -> MOVIMENTAÇÃO DE TERRA | C121: =Resumo!J54 -> 4755303.235 | D121: DURAÇÃO
D122: R$ | E122: =$C121*E123 -> 0 | I122: =$C121*I123 -> 0 | M122: =$C121*M123 -> 0 | Q122: =$C121*Q123 -> 951060.6469 | U122: =$C121*U123 -> 951060.6469 | Y122: =$C121*Y123 -> 951060.6469 | AC122: =$C121*AC123 -> 951060.6469 | AG122: =$C121*AG123 -> 951060.6469 | AK122: =$C121*AK123 -> 0 | AO122: =$C121*AO123 -> 0 | AS122: =$C121*AS123 -> 0 | AW122: =$C121*AW123 -> 0 | BA122: =$C121*BA123 -> 0 | BE122: =$C121*BE123 -> 0 | BI122: =$C121*BI123 -> 0 | BM122: =$C121*BM123 -> 0 | BQ122: =$C121*BQ123 -> 0 | BU122: =$C121*BU123 -> 0 | BY122: =$C121*BY123 -> 0 | CC122: =$C121*CC123 -> 0 | CG122: =$C121*CG123 -> 0 | CK122: =$C121*CK123 -> 0 | CO122: =$C121*CO123 -> 0 | CS122: =$C121*CS123 -> 0 | CW122: =SUM(E122:CV122) -> 4755303.235 | CX122: =CW122=C121 -> TRUE
D123: % | Q123: =1/5 -> 0.2 | U123: =1/5 -> 0.2 | Y123: =1/5 -> 0.2 | AC123: =1/5 -> 0.2 | AG123: =1/5 -> 0.2 | CW123: =SUM(E123:CV123) -> 1 | CX123: =CW123=100% -> TRUE
A124: =LEFT(A121,1)+1&"." -> 4. | B124: =VLOOKUP(A124,Resumo!$C$51:$K$77,2,FALSE) -> INFRAESTRUTURA | C124: =Resumo!J55 -> 14106753.91 | D124: DURAÇÃO
D125: R$ | E125: =$C124*E126 -> 0 | I125: =$C124*I126 -> 0 | M125: =$C124*M126 -> 0 | Q125: =$C124*Q126 -> 0 | U125: =$C124*U126 -> 2821350.782 | Y125: =$C124*Y126 -> 2821350.782 | AC125: =$C124*AC126 -> 2821350.782 | AG125: =$C124*AG126 -> 2821350.782 | AK125: =$C124*AK126 -> 2821350.782 | AO125: =$C124*AO126 -> 0 | AS125: =$C124*AS126 -> 0 | AW125: =$C124*AW126 -> 0 | BA125: =$C124*BA126 -> 0 | BE125: =$C124*BE126 -> 0 | BI125: =$C124*BI126 -> 0 | BM125: =$C124*BM126 -> 0 | BQ125: =$C124*BQ126 -> 0 | BU125: 0 | BY125: =$C124*BY126 -> 0 | CC125: =$C124*CC126 -> 0 | CG125: =$C124*CG126 -> 0 | CK125: =$C124*CK126 -> 0 | CO125: =$C124*CO126 -> 0 | CS125: =$C124*CS126 -> 0 | CW125: =SUM(E125:CV125) -> 14106753.91 | CX125: =CW125=C124 -> TRUE
D126: % | U126: =1/5 -> 0.2 | Y126: =1/5 -> 0.2 | AC126: =1/5 -> 0.2 | AG126: =1/5 -> 0.2 | AK126: =1/5 -> 0.2 | CW126: =SUM(E126:CV126) -> 1 | CX126: =CW126=100% -> TRUE
A127: =LEFT(A124,1)+1&"." -> 5. | B127: =VLOOKUP(A127,Resumo!$C$51:$K$77,2,FALSE) -> SUPRAESTRUTURA | C127: =Resumo!J56 -> 35270015.37 | D127: DURAÇÃO
D128: R$ | E128: =$C127*E129 -> 0 | I128: =$C127*I129 -> 0 | M128: =$C127*M129 -> 0 | Q128: =$C127*Q129 -> 0 | U128: =$C127*U129 -> 4408751.922 | Y128: =$C127*Y129 -> 4408751.922 | AC128: =$C127*AC129 -> 4408751.922 | AG128: =$C127*AG129 -> 4408751.922 | AK128: =$C127*AK129 -> 4408751.922 | AO128: =$C127*AO129 -> 4408751.922 | AS128: =$C127*AS129 -> 4408751.922 | AW128: =$C127*AW129 -> 4408751.922 | BA128: =$C127*BA129 -> 0 | BE128: =$C127*BE129 -> 0 | BI128: =$C127*BI129 -> 0 | BM128: =$C127*BM129 -> 0 | BQ128: =$C127*BQ129 -> 0 | BU128: =$C127*BU129 -> 0 | BY128: =$C127*BY129 -> 0 | CC128: =$C127*CC129 -> 0 | CG128: =$C127*CG129 -> 0 | CK128: =$C127*CK129 -> 0 | CO128: =$C127*CO129 -> 0 | CS128: =$C127*CS129 -> 0 | CW128: =SUM(E128:CV128) -> 35270015.37 | CX128: =CW128=C127 -> TRUE
D129: % | U129: =1/8 -> 0.125 | Y129: =1/8 -> 0.125 | AC129: =1/8 -> 0.125 | AG129: =1/8 -> 0.125 | AK129: =1/8 -> 0.125 | AO129: =1/8 -> 0.125 | AS129: =1/8 -> 0.125 | AW129: =1/8 -> 0.125 | CW129: =SUM(E129:CV129) -> 1 | CX129: =CW129=100% -> TRUE
A130: =LEFT(A127,1)+1&"." -> 6. | B130: =VLOOKUP(A130,Resumo!$C$51:$K$77,2,FALSE) -> COBERTURA | C130: =Resumo!J57 -> 515314.2808 | D130: DURAÇÃO
D131: R$ | E131: =$C130*E132 -> 0 | I131: =$C130*I132 -> 0 | M131: =$C130*M132 -> 0 | Q131: =$C130*Q132 -> 0 | U131: =$C130*U132 -> 0 | Y131: =$C130*Y132 -> 0 | AC131: =$C130*AC132 -> 0 | AG131: =$C130*AG132 -> 0 | AK131: =$C130*AK132 -> 0 | AO131: =$C130*AO132 -> 0 | AS131: =$C130*AS132 -> 0 | AW131: =$C130*AW132 -> 0 | BA131: =$C130*BA132 -> 171771.4269 | BE131: =$C130*BE132 -> 171771.4269 | BI131: =$C130*BI132 -> 171771.4269 | BM131: =$C130*BM132 -> 0 | BQ131: =$C130*BQ132 -> 0 | BU131: =$C130*BU132 -> 0 | BY131: =$C130*BY132 -> 0 | CC131: =$C130*CC132 -> 0 | CG131: =$C130*CG132 -> 0 | CK131: =$C130*CK132 -> 0 | CO131: =$C130*CO132 -> 0 | CS131: =$C130*CS132 -> 0 | CW131: =SUM(E131:CV131) -> 515314.2808 | CX131: =CW131=C130 -> TRUE
D132: % | BA132: =1/3 -> 0.3333333333 | BE132: =1/3 -> 0.3333333333 | BI132: =1/3 -> 0.3333333333 | CW132: =SUM(E132:CV132) -> 1 | CX132: =CW132=100% -> TRUE
A133: =LEFT(A130,1)+1&"." -> 7. | B133: =VLOOKUP(A133,Resumo!$C$51:$K$77,2,FALSE) -> IMPERMEABILIZAÇÃO | C133: =Resumo!J58 -> 2103315.567 | D133: DURAÇÃO
D134: R$ | E134: =$C133*E135 -> 0 | I134: =$C133*I135 -> 0 | M134: =$C133*M135 -> 0 | Q134: =$C133*Q135 -> 0 | U134: =$C133*U135 -> 0 | Y134: =$C133*Y135 -> 0 | AC134: =$C133*AC135 -> 0 | AG134: =$C133*AG135 -> 0 | AK134: =$C133*AK135 -> 0 | AO134: =$C133*AO135 -> 0 | AS134: =$C133*AS135 -> 0 | AW134: =$C133*AW135 -> 0 | BA134: =$C133*BA135 -> 701105.1891 | BE134: =$C133*BE135 -> 701105.1891 | BI134: =$C133*BI135 -> 701105.1891 | BM134: =$C133*BM135 -> 0 | BQ134: =$C133*BQ135 -> 0 | BU134: =$C133*BU135 -> 0 | BY134: =$C133*BY135 -> 0 | CC134: =$C133*CC135 -> 0 | CG134: =$C133*CG135 -> 0 | CK134: =$C133*CK135 -> 0 | CO134: =$C133*CO135 -> 0 | CS134: =$C133*CS135 -> 0 | CW134: =SUM(E134:CV134) -> 2103315.567 | CX134: =CW134=C133 -> TRUE
D135: % | BA135: =1/3 -> 0.3333333333 | BE135: =1/3 -> 0.3333333333 | BI135: =1/3 -> 0.3333333333 | CW135: =SUM(E135:CV135) -> 1 | CX135: =CW135=100% -> TRUE
A136: =LEFT(A133,1)+1&"." -> 8. | B136: =VLOOKUP(A136,Resumo!$C$51:$K$77,2,FALSE) -> PAREDES E PAINÉIS | C136: =Resumo!J59 -> 8337806.923 | D136: DURAÇÃO
D137: R$ | E137: =$C136*E138 -> 0 | I137: =$C136*I138 -> 0 | M137: =$C136*M138 -> 0 | Q137: =$C136*Q138 -> 0 | U137: =$C136*U138 -> 0 | Y137: =$C136*Y138 -> 833780.6923 | AC137: =$C136*AC138 -> 833780.6923 | AG137: =$C136*AG138 -> 833780.6923 | AK137: =$C136*AK138 -> 833780.6923 | AO137: =$C136*AO138 -> 833780.6923 | AS137: =$C136*AS138 -> 833780.6923 | AW137: =$C136*AW138 -> 833780.6923 | BA137: =$C136*BA138 -> 833780.6923 | BE137: =$C136*BE138 -> 833780.6923 | BI137: =$C136*BI138 -> 833780.6923 | BM137: =$C136*BM138 -> 0 | BQ137: =$C136*BQ138 -> 0 | BU137: =$C136*BU138 -> 0 | BY137: =$C136*BY138 -> 0 | CC137: =$C136*CC138 -> 0 | CG137: =$C136*CG138 -> 0 | CK137: =$C136*CK138 -> 0 | CO137: =$C136*CO138 -> 0 | CS137: =$C136*CS138 -> 0 | CW137: =SUM(E137:CV137) -> 8337806.923 | CX137: =CW137=C136 -> TRUE
D138: % | Y138: =1/10 -> 0.1 | AC138: =1/10 -> 0.1 | AG138: =1/10 -> 0.1 | AK138: =1/10 -> 0.1 | AO138: =1/10 -> 0.1 | AS138: =1/10 -> 0.1 | AW138: =1/10 -> 0.1 | BA138: =1/10 -> 0.1 | BE138: =1/10 -> 0.1 | BI138: =1/10 -> 0.1 | BM138: 0 | BQ138: 0 | CW138: =SUM(E138:CV138) -> 1 | CX138: =CW138=100% -> TRUE
A139: =LEFT(A136,1)+1&"." -> 9. | B139: =VLOOKUP(A139,Resumo!$C$51:$K$77,2,FALSE) -> ESQUADRIAS | C139: =Resumo!J60 -> 12021778.78 | D139: DURAÇÃO
D140: R$ | E140: =$C139*E141 -> 0 | I140: =$C139*I141 -> 0 | M140: =$C139*M141 -> 0 | Q140: =$C139*Q141 -> 0 | U140: =$C139*U141 -> 0 | Y140: =$C139*Y141 -> 0 | AC140: =$C139*AC141 -> 1202177.878 | AG140: =$C139*AG141 -> 1202177.878 | AK140: =$C139*AK141 -> 1202177.878 | AO140: =$C139*AO141 -> 1202177.878 | AS140: =$C139*AS141 -> 1202177.878 | AW140: =$C139*AW141 -> 1202177.878 | BA140: =$C139*BA141 -> 1202177.878 | BE140: =$C139*BE141 -> 1202177.878 | BI140: =$C139*BI141 -> 1202177.878 | BM140: =$C139*BM141 -> 1202177.878 | BQ140: =$C139*BQ141 -> 0 | BU140: =$C139*BU141 -> 0 | BY140: =$C139*BY141 -> 0 | CC140: =$C139*CC141 -> 0 | CG140: =$C139*CG141 -> 0 | CK140: =$C139*CK141 -> 0 | CO140: =$C139*CO141 -> 0 | CS140: =$C139*CS141 -> 0 | CW140: =SUM(E140:CV140) -> 12021778.78 | CX140: =CW140=C139 -> TRUE
D141: % | AC141: =1/10 -> 0.1 | AG141: =1/10 -> 0.1 | AK141: =1/10 -> 0.1 | AO141: =1/10 -> 0.1 | AS141: =1/10 -> 0.1 | AW141: =1/10 -> 0.1 | BA141: =1/10 -> 0.1 | BE141: =1/10 -> 0.1 | BI141: =1/10 -> 0.1 | BM141: =1/10 -> 0.1 | BU141: 0 | BY141: 0 | CW141: =SUM(E141:CV141) -> 1 | CX141: =CW141=100% -> TRUE
A142: =LEFT(A139,1)+1&"." -> 10. | B142: =VLOOKUP(A142,Resumo!$C$51:$K$77,2,FALSE) -> REVESTIMENTO DE FORRO | C142: =Resumo!J61 -> 2140717.481 | D142: DURAÇÃO
D143: R$ | E143: =$C142*E144 -> 0 | I143: =$C142*I144 -> 0 | M143: =$C142*M144 -> 0 | Q143: =$C142*Q144 -> 0 | U143: =$C142*U144 -> 0 | Y143: =$C142*Y144 -> 0 | AC143: =$C142*AC144 -> 0 | AG143: =$C142*AG144 -> 0 | AK143: =$C142*AK144 -> 267589.6851 | AO143: =$C142*AO144 -> 267589.6851 | AS143: =$C142*AS144 -> 267589.6851 | AW143: =$C142*AW144 -> 267589.6851 | BA143: =$C142*BA144 -> 267589.6851 | BE143: =$C142*BE144 -> 267589.6851 | BI143: =$C142*BI144 -> 267589.6851 | BM143: =$C142*BM144 -> 267589.6851 | BQ143: =$C142*BQ144 -> 0 | BU143: =$C142*BU144 -> 0 | BY143: =$C142*BY144 -> 0 | CC143: =$C142*CC144 -> 0 | CG143: =$C142*CG144 -> 0 | CK143: =$C142*CK144 -> 0 | CO143: =$C142*CO144 -> 0 | CS143: =$C142*CS144 -> 0 | CW143: =SUM(E143:CV143) -> 2140717.481 | CX143: =CW143=C142 -> TRUE
D144: % | AK144: =1/8 -> 0.125 | AO144: =1/8 -> 0.125 | AS144: =1/8 -> 0.125 | AW144: =1/8 -> 0.125 | BA144: =1/8 -> 0.125 | BE144: =1/8 -> 0.125 | BI144: =1/8 -> 0.125 | BM144: =1/8 -> 0.125 | CW144: =SUM(E144:CV144) -> 1 | CX144: =CW144=100% -> TRUE
A145: =LEFT(A142,2)+1&"." -> 11. | B145: =VLOOKUP(A145,Resumo!$C$51:$K$77,2,FALSE) -> REVESTIMENTO DE PAREDE | C145: =Resumo!J62 -> 11782698.07 | D145: DURAÇÃO
D146: R$ | E146: =$C145*E147 -> 0 | I146: =$C145*I147 -> 0 | M146: =$C145*M147 -> 0 | Q146: =$C145*Q147 -> 0 | U146: =$C145*U147 -> 0 | Y146: =$C145*Y147 -> 0 | AC146: =$C145*AC147 -> 0 | AG146: =$C145*AG147 -> 0 | AK146: =$C145*AK147 -> 1472837.259 | AO146: =$C145*AO147 -> 1472837.259 | AS146: =$C145*AS147 -> 1472837.259 | AW146: =$C145*AW147 -> 1472837.259 | BA146: =$C145*BA147 -> 1472837.259 | BE146: =$C145*BE147 -> 1472837.259 | BI146: =$C145*BI147 -> 1472837.259 | BM146: =$C145*BM147 -> 1472837.259 | BQ146: =$C145*BQ147 -> 0 | BU146: =$C145*BU147 -> 0 | BY146: =$C145*BY147 -> 0 | CC146: =$C145*CC147 -> 0 | CG146: =$C145*CG147 -> 0 | CK146: =$C145*CK147 -> 0 | CO146: =$C145*CO147 -> 0 | CS146: =$C145*CS147 -> 0 | CW146: =SUM(E146:CV146) -> 11782698.07 | CX146: =CW146=C145 -> TRUE
D147: % | AK147: =1/8 -> 0.125 | AO147: =1/8 -> 0.125 | AS147: =1/8 -> 0.125 | AW147: =1/8 -> 0.125 | BA147: =1/8 -> 0.125 | BE147: =1/8 -> 0.125 | BI147: =1/8 -> 0.125 | BM147: =1/8 -> 0.125 | CW147: =SUM(E147:CV147) -> 1 | CX147: =CW147=100% -> TRUE
A148: =LEFT(A145,2)+1&"." -> 12. | B148: =VLOOKUP(A148,Resumo!$C$51:$K$77,2,FALSE) -> REVESTIMENTO DE PISO | C148: =Resumo!J63 -> 12403545.54 | D148: DURAÇÃO
D149: R$ | E149: =$C148*E150 -> 0 | I149: =$C148*I150 -> 0 | M149: =$C148*M150 -> 0 | Q149: =$C148*Q150 -> 0 | U149: =$C148*U150 -> 0 | Y149: =$C148*Y150 -> 0 | AC149: =$C148*AC150 -> 0 | AG149: =$C148*AG150 -> 1378171.726 | AK149: =$C148*AK150 -> 1378171.726 | AO149: =$C148*AO150 -> 1378171.726 | AS149: =$C148*AS150 -> 1378171.726 | AW149: =$C148*AW150 -> 1378171.726 | BA149: =$C148*BA150 -> 1378171.726 | BE149: =$C148*BE150 -> 1378171.726 | BI149: =$C148*BI150 -> 1378171.726 | BM149: =$C148*BM150 -> 1378171.726 | BQ149: =$C148*BQ150 -> 0 | BU149: =$C148*BU150 -> 0 | BY149: =$C148*BY150 -> 0 | CC149: =$C148*CC150 -> 0 | CG149: =$C148*CG150 -> 0 | CK149: =$C148*CK150 -> 0 | CO149: =$C148*CO150 -> 0 | CS149: =$C148*CS150 -> 0 | CW149: =SUM(E149:CV149) -> 12403545.54 | CX149: =CW149=C148 -> TRUE
D150: % | AG150: =1/9 -> 0.1111111111 | AK150: =1/9 -> 0.1111111111 | AO150: =1/9 -> 0.1111111111 | AS150: =1/9 -> 0.1111111111 | AW150: =1/9 -> 0.1111111111 | BA150: =1/9 -> 0.1111111111 | BE150: =1/9 -> 0.1111111111 | BI150: =1/9 -> 0.1111111111 | BM150: =1/9 -> 0.1111111111 | CW150: =SUM(E150:CV150) -> 1 | CX150: =CW150=100% -> TRUE
A151: =LEFT(A148,2)+1&"." -> 13. | B151: =VLOOKUP(A151,Resumo!$C$51:$K$77,2,FALSE) -> REVESTIMENTO ESCADA | C151: =Resumo!J64 -> 29387.09928 | D151: DURAÇÃO
D152: R$ | E152: =$C151*E153 -> 0 | I152: =$C151*I153 -> 0 | M152: =$C151*M153 -> 0 | Q152: =$C151*Q153 -> 0 | U152: =$C151*U153 -> 0 | Y152: =$C151*Y153 -> 0 | AC152: =$C151*AC153 -> 0 | AG152: =$C151*AG153 -> 0 | AK152: =$C151*AK153 -> 0 | AO152: =$C151*AO153 -> 0 | AS152: =$C151*AS153 -> 0 | AW152: =$C151*AW153 -> 0 | BA152: =$C151*BA153 -> 14693.54964 | BE152: =$C151*BE153 -> 14693.54964 | BI152: =$C151*BI153 -> 0 | BM152: =$C151*BM153 -> 0 | BQ152: =$C151*BQ153 -> 0 | BU152: =$C151*BU153 -> 0 | BY152: =$C151*BY153 -> 0 | CC152: =$C151*CC153 -> 0 | CG152: =$C151*CG153 -> 0 | CK152: =$C151*CK153 -> 0 | CO152: =$C151*CO153 -> 0 | CS152: =$C151*CS153 -> 0 | CW152: =SUM(E152:CV152) -> 29387.09928 | CX152: =CW152=C151 -> TRUE
D153: % | BA153: =1/2 -> 0.5 | BE153: =1/2 -> 0.5 | CW153: =SUM(E153:CV153) -> 1 | CX153: =CW153=100% -> TRUE
A154: =LEFT(A151,2)+1&"." -> 14. | B154: =VLOOKUP(A154,Resumo!$C$51:$K$77,2,FALSE) -> GUARDA-CORPO/CORRIMÃO | C154: =Resumo!J65 -> 1118807.513 | D154: DURAÇÃO
D155: R$ | E155: =$C154*E156 -> 0 | I155: =$C154*I156 -> 0 | M155: =$C154*M156 -> 0 | Q155: =$C154*Q156 -> 0 | U155: =$C154*U156 -> 0 | Y155: =$C154*Y156 -> 0 | AC155: =$C154*AC156 -> 0 | AG155: =$C154*AG156 -> 0 | AK155: =$C154*AK156 -> 0 | AO155: =$C154*AO156 -> 0 | AS155: =$C154*AS156 -> 0 | AW155: =$C154*AW156 -> 0 | BA155: =$C154*BA156 -> 0 | BE155: =$C154*BE156 -> 0 | BI155: =$C154*BI156 -> 372935.8378 | BM155: =$C154*BM156 -> 372935.8378 | BQ155: =$C154*BQ156 -> 372935.8378 | BU155: =$C154*BU156 -> 0 | BY155: =$C154*BY156 -> 0 | CC155: =$C154*CC156 -> 0 | CG155: =$C154*CG156 -> 0 | CK155: =$C154*CK156 -> 0 | CO155: =$C154*CO156 -> 0 | CS155: =$C154*CS156 -> 0 | CW155: =SUM(E155:CV155) -> 1118807.513 | CX155: =CW155=C154 -> TRUE
D156: % | BI156: =1/3 -> 0.3333333333 | BM156: =1/3 -> 0.3333333333 | BQ156: =1/3 -> 0.3333333333 | CW156: =SUM(E156:CV156) -> 1 | CX156: =CW156=100% -> TRUE
A157: =LEFT(A154,2)+1&"." -> 15. | B157: =VLOOKUP(A157,Resumo!$C$51:$K$77,2,FALSE) -> INSTALAÇÕES | C157: =Resumo!J66 -> 26083396.89 | D157: DURAÇÃO
D158: R$ | E158: =$C157*E159 -> 0 | I158: =$C157*I159 -> 0 | M158: =$C157*M159 -> 0 | Q158: =$C157*Q159 -> 0 | U158: =$C157*U159 -> 0 | Y158: =$C157*Y159 -> 0 | AC158: =$C157*AC159 -> 0 | AG158: =$C157*AG159 -> 0 | AK158: =$C157*AK159 -> 0 | AO158: =$C157*AO159 -> 2608339.689 | AS158: =$C157*AS159 -> 2608339.689 | AW158: =$C157*AW159 -> 2608339.689 | BA158: =$C157*BA159 -> 2608339.689 | BE158: =$C157*BE159 -> 2608339.689 | BI158: =$C157*BI159 -> 2608339.689 | BM158: =$C157*BM159 -> 2608339.689 | BQ158: =$C157*BQ159 -> 2608339.689 | BU158: =$C157*BU159 -> 2608339.689 | BY158: =$C157*BY159 -> 2608339.689 | CC158: =$C157*CC159 -> 0 | CG158: =$C157*CG159 -> 0 | CK158: =$C157*CK159 -> 0 | CO158: =$C157*CO159 -> 0 | CS158: =$C157*CS159 -> 0 | CW158: =SUM(E158:CV158) -> 26083396.89 | CX158: =CW158=C157 -> TRUE
D159: % | AO159: =1/10 -> 0.1 | AS159: =1/10 -> 0.1 | AW159: =1/10 -> 0.1 | BA159: =1/10 -> 0.1 | BE159: =1/10 -> 0.1 | BI159: =1/10 -> 0.1 | BM159: =1/10 -> 0.1 | BQ159: =1/10 -> 0.1 | BU159: =1/10 -> 0.1 | BY159: =1/10 -> 0.1 | CW159: =SUM(E159:CV159) -> 1 | CX159: =CW159=100% -> TRUE
A160: =LEFT(A157,2)+1&"." -> 16. | B160: =VLOOKUP(A160,Resumo!$C$51:$K$77,2,FALSE) -> ELEVADORES | C160: =Resumo!J67 -> 4726198.671 | D160: DURAÇÃO
D161: R$ | E161: =$C160*E162 -> 0 | I161: =$C160*I162 -> 0 | M161: =$C160*M162 -> 0 | Q161: =$C160*Q162 -> 0 | U161: =$C160*U162 -> 0 | Y161: =$C160*Y162 -> 0 | AC161: =$C160*AC162 -> 0 | AG161: =$C160*AG162 -> 0 | AK161: =$C160*AK162 -> 0 | AO161: =$C160*AO162 -> 0 | AS161: =$C160*AS162 -> 0 | AW161: =$C160*AW162 -> 0 | BA161: =$C160*BA162 -> 0 | BE161: =$C160*BE162 -> 0 | BI161: =$C160*BI162 -> 0 | BM161: =$C160*BM162 -> 0 | BQ161: =$C160*BQ162 -> 0 | BU161: =$C160*BU162 -> 0 | BY161: =$C160*BY162 -> 0 | CC161: =$C160*CC162 -> 0 | CG161: =$C160*CG162 -> 4726198.671 | CK161: =$C160*CK162 -> 0 | CO161: =$C160*CO162 -> 0 | CS161: =$C160*CS162 -> 0 | CW161: =SUM(E161:CV161) -> 4726198.671 | CX161: =CW161=C160 -> TRUE
D162: % | CG162: =1 -> 1 | CW162: =SUM(E162:CV162) -> 1 | CX162: =CW162=100% -> TRUE
A163: =LEFT(A160,2)+1&"." -> 17. | B163: =VLOOKUP(A163,Resumo!$C$51:$K$77,2,FALSE) -> HELIPONTO | C163: =Resumo!J68 -> 557205.4918 | D163: DURAÇÃO
D164: R$ | E164: =$C163*E165 -> 0 | I164: =$C163*I165 -> 0 | M164: =$C163*M165 -> 0 | Q164: =$C163*Q165 -> 0 | U164: =$C163*U165 -> 0 | Y164: =$C163*Y165 -> 0 | AC164: =$C163*AC165 -> 0 | AG164: =$C163*AG165 -> 0 | AK164: =$C163*AK165 -> 0 | AO164: =$C163*AO165 -> 0 | AS164: =$C163*AS165 -> 0 | AW164: =$C163*AW165 -> 0 | BA164: =$C163*BA165 -> 0 | BE164: =$C163*BE165 -> 0 | BI164: =$C163*BI165 -> 0 | BM164: =$C163*BM165 -> 0 | BQ164: =$C163*BQ165 -> 0 | BU164: =$C163*BU165 -> 0 | BY164: =$C163*BY165 -> 0 | CC164: =$C163*CC165 -> 278602.7459 | CG164: =$C163*CG165 -> 278602.7459 | CK164: =$C163*CK165 -> 0 | CO164: =$C163*CO165 -> 0 | CS164: =$C163*CS165 -> 0 | CW164: =SUM(E164:CV164) -> 557205.4918 | CX164: =CW164=C163 -> TRUE
D165: % | CC165: =1/2 -> 0.5 | CG165: =1/2 -> 0.5 | CW165: =SUM(E165:CV165) -> 1 | CX165: =CW165=100% -> TRUE
A166: =LEFT(A163,2)+1&"." -> 18. | B166: =VLOOKUP(A166,Resumo!$C$51:$K$77,2,FALSE) -> AUDITÓRIO | C166: =Resumo!J69 -> 5286018.542 | D166: DURAÇÃO
D167: R$ | E167: =$C166*E168 -> 0 | I167: =$C166*I168 -> 0 | M167: =$C166*M168 -> 0 | Q167: =$C166*Q168 -> 0 | U167: =$C166*U168 -> 0 | Y167: =$C166*Y168 -> 0 | AC167: =$C166*AC168 -> 0 | AG167: =$C166*AG168 -> 0 | AK167: =$C166*AK168 -> 0 | AO167: =$C166*AO168 -> 0 | AS167: =$C166*AS168 -> 0 | AW167: =$C166*AW168 -> 0 | BA167: =$C166*BA168 -> 0 | BE167: =$C166*BE168 -> 0 | BI167: =$C166*BI168 -> 0 | BM167: =$C166*BM168 -> 0 | BQ167: =$C166*BQ168 -> 1057203.708 | BU167: =$C166*BU168 -> 1057203.708 | BY167: =$C166*BY168 -> 1057203.708 | CC167: =$C166*CC168 -> 1057203.708 | CG167: =$C166*CG168 -> 1057203.708 | CK167: =$C166*CK168 -> 0 | CO167: =$C166*CO168 -> 0 | CS167: =$C166*CS168 -> 0 | CW167: =SUM(E167:CV167) -> 5286018.542 | CX167: =CW167=C166 -> TRUE
D168: % | BQ168: =1/5 -> 0.2 | BU168: =1/5 -> 0.2 | BY168: =1/5 -> 0.2 | CC168: =1/5 -> 0.2 | CG168: =1/5 -> 0.2 | CW168: =SUM(E168:CV168) -> 1 | CX168: =CW168=100% -> TRUE
A169: =LEFT(A166,2)+1&"." -> 19. | B169: =VLOOKUP(A169,Resumo!$C$51:$K$77,2,FALSE) -> LOUÇAS/ BANCADAS/ METAIS/ ESPELHOS/ ACESSÓRIOS | C169: =Resumo!J70 -> 712797.5808 | D169: DURAÇÃO
D170: R$ | E170: =$C169*E171 -> 0 | I170: =$C169*I171 -> 0 | M170: =$C169*M171 -> 0 | Q170: =$C169*Q171 -> 0 | U170: =$C169*U171 -> 0 | Y170: =$C169*Y171 -> 0 | AC170: =$C169*AC171 -> 0 | AG170: =$C169*AG171 -> 0 | AK170: =$C169*AK171 -> 0 | AO170: =$C169*AO171 -> 0 | AS170: =$C169*AS171 -> 0 | AW170: =$C169*AW171 -> 0 | BA170: =$C169*BA171 -> 0 | BE170: =$C169*BE171 -> 0 | BI170: =$C169*BI171 -> 0 | BM170: =$C169*BM171 -> 0 | BQ170: =$C169*BQ171 -> 0 | BU170: =$C169*BU171 -> 0 | BY170: =$C169*BY171 -> 0 | CC170: =$C169*CC171 -> 356398.7904 | CG170: =$C169*CG171 -> 356398.7904 | CK170: =$C169*CK171 -> 0 | CO170: =$C169*CO171 -> 0 | CS170: =$C169*CS171 -> 0 | CW170: =SUM(E170:CV170) -> 712797.5808 | CX170: =CW170=C169 -> TRUE
D171: % | CC171: =1/2 -> 0.5 | CG171: =1/2 -> 0.5 | CW171: =SUM(E171:CV171) -> 1 | CX171: =CW171=100% -> TRUE
A172: =LEFT(A169,2)+1&"." -> 20. | B172: =VLOOKUP(A172,Resumo!$C$51:$K$77,2,FALSE) -> EQUIPAMENTOS E CONTROLE DE ACESSO | C172: =Resumo!J71 -> 482963.0944 | D172: DURAÇÃO
D173: R$ | E173: =$C172*E174 -> 0 | I173: =$C172*I174 -> 0 | M173: =$C172*M174 -> 0 | Q173: =$C172*Q174 -> 0 | U173: =$C172*U174 -> 0 | Y173: =$C172*Y174 -> 0 | AC173: =$C172*AC174 -> 0 | AG173: =$C172*AG174 -> 0 | AK173: =$C172*AK174 -> 0 | AO173: =$C172*AO174 -> 0 | AS173: =$C172*AS174 -> 0 | AW173: =$C172*AW174 -> 0 | BA173: =$C172*BA174 -> 0 | BE173: =$C172*BE174 -> 0 | BI173: =$C172*BI174 -> 0 | BM173: =$C172*BM174 -> 0 | BQ173: =$C172*BQ174 -> 0 | BU173: =$C172*BU174 -> 0 | BY173: =$C172*BY174 -> 482963.0944 | CC173: =$C172*CC174 -> 0 | CG173: =$C172*CG174 -> 0 | CK173: =$C172*CK174 -> 0 | CO173: =$C172*CO174 -> 0 | CS173: =$C172*CS174 -> 0 | CW173: =SUM(E173:CV173) -> 482963.0944 | CX173: =CW173=C172 -> TRUE
D174: % | BY174: =1 -> 1 | CC174: 0 | CW174: =SUM(E174:CV174) -> 1 | CX174: =CW174=100% -> TRUE
A175: =LEFT(A172,2)+1&"." -> 21. | B175: =VLOOKUP(A175,Resumo!$C$51:$K$77,2,FALSE) -> PAISAGISMO | C175: =Resumo!J72 -> 358263.901 | D175: DURAÇÃO
D176: R$ | E176: =$C175*E177 -> 0 | I176: =$C175*I177 -> 0 | M176: =$C175*M177 -> 0 | Q176: =$C175*Q177 -> 0 | U176: =$C175*U177 -> 0 | Y176: =$C175*Y177 -> 0 | AC176: =$C175*AC177 -> 0 | AG176: =$C175*AG177 -> 0 | AK176: =$C175*AK177 -> 0 | AO176: =$C175*AO177 -> 0 | AS176: =$C175*AS177 -> 0 | AW176: =$C175*AW177 -> 0 | BA176: =$C175*BA177 -> 0 | BE176: =$C175*BE177 -> 0 | BI176: =$C175*BI177 -> 0 | BM176: =$C175*BM177 -> 0 | BQ176: =$C175*BQ177 -> 0 | BU176: =$C175*BU177 -> 0 | BY176: =$C175*BY177 -> 0 | CC176: =$C175*CC177 -> 0 | CG176: =$C175*CG177 -> 358263.901 | CK176: =$C175*CK177 -> 0 | CO176: =$C175*CO177 -> 0 | CS176: =$C175*CS177 -> 0 | CW176: =SUM(E176:CV176) -> 358263.901 | CX176: =CW176=C175 -> TRUE
D177: % | BY177: 0 | CG177: 1 | CW177: =SUM(E177:CV177) -> 1 | CX177: =CW177=100% -> TRUE
A178: =LEFT(A175,2)+1&"." -> 22. | B178: =VLOOKUP(A178,Resumo!$C$51:$K$77,2,FALSE) -> COMUNICAÇÃO VISUAL | C178: =Resumo!J73 -> 123796.1703 | D178: DURAÇÃO
D179: R$ | E179: =$C178*E180 -> 0 | I179: =$C178*I180 -> 0 | M179: =$C178*M180 -> 0 | Q179: =$C178*Q180 -> 0 | U179: =$C178*U180 -> 0 | Y179: =$C178*Y180 -> 0 | AC179: =$C178*AC180 -> 0 | AG179: =$C178*AG180 -> 0 | AK179: =$C178*AK180 -> 0 | AO179: =$C178*AO180 -> 0 | AS179: =$C178*AS180 -> 0 | AW179: =$C178*AW180 -> 0 | BA179: =$C178*BA180 -> 0 | BE179: =$C178*BE180 -> 0 | BI179: =$C178*BI180 -> 0 | BM179: =$C178*BM180 -> 0 | BQ179: =$C178*BQ180 -> 0 | BU179: =$C178*BU180 -> 0 | BY179: =$C178*BY180 -> 0 | CC179: =$C178*CC180 -> 0 | CG179: =$C178*CG180 -> 123796.1703 | CK179: =$C178*CK180 -> 0 | CO179: =$C178*CO180 -> 0 | CS179: =$C178*CS180 -> 0 | CW179: =SUM(E179:CV179) -> 123796.1703 | CX179: =CW179=C178 -> TRUE
D180: % | CG180: =1 -> 1 | CW180: =SUM(E180:CV180) -> 1 | CX180: =CW180=100% -> TRUE
A181: =LEFT(A178,2)+1&"." -> 23. | B181: =VLOOKUP(A181,Resumo!$C$51:$K$77,2,FALSE) -> MOBILIÁRIO | C181: =Resumo!J74 -> 1110809.058 | D181: DURAÇÃO
D182: R$ | E182: =$C181*E183 -> 0 | I182: =$C181*I183 -> 0 | M182: =$C181*M183 -> 0 | Q182: =$C181*Q183 -> 0 | U182: =$C181*U183 -> 0 | Y182: =$C181*Y183 -> 0 | AC182: =$C181*AC183 -> 0 | AG182: =$C181*AG183 -> 0 | AK182: =$C181*AK183 -> 0 | AO182: =$C181*AO183 -> 0 | AS182: =$C181*AS183 -> 0 | AW182: =$C181*AW183 -> 0 | BA182: =$C181*BA183 -> 0 | BE182: =$C181*BE183 -> 0 | BI182: =$C181*BI183 -> 0 | BM182: =$C181*BM183 -> 185134.843 | BQ182: =$C181*BQ183 -> 185134.843 | BU182: =$C181*BU183 -> 185134.843 | BY182: =$C181*BY183 -> 185134.843 | CC182: =$C181*CC183 -> 185134.843 | CG182: =$C181*CG183 -> 185134.843 | CK182: =$C181*CK183 -> 0 | CO182: =$C181*CO183 -> 0 | CS182: =$C181*CS183 -> 0 | CW182: =SUM(E182:CV182) -> 1110809.058 | CX182: =CW182=C181 -> TRUE
D183: % | BM183: =1/6 -> 0.1666666667 | BQ183: =1/6 -> 0.1666666667 | BU183: =1/6 -> 0.1666666667 | BY183: =1/6 -> 0.1666666667 | CC183: =1/6 -> 0.1666666667 | CG183: =1/6 -> 0.1666666667 | CW183: =SUM(E183:CV183) -> 1 | CX183: =CW183=100% -> TRUE
A184: =LEFT(A181,2)+1&"." -> 24. | B184: =VLOOKUP(A184,Resumo!$C$51:$K$77,2,FALSE) -> AS BUILT | C184: =Resumo!J75 -> 28826.98441 | D184: DURAÇÃO
D185: R$ | E185: =$C184*E186 -> 0 | I185: =$C184*I186 -> 0 | M185: =$C184*M186 -> 0 | Q185: =$C184*Q186 -> 0 | U185: =$C184*U186 -> 0 | Y185: =$C184*Y186 -> 0 | AC185: =$C184*AC186 -> 0 | AG185: =$C184*AG186 -> 0 | AK185: =$C184*AK186 -> 0 | AO185: =$C184*AO186 -> 0 | AS185: =$C184*AS186 -> 0 | AW185: =$C184*AW186 -> 0 | BA185: =$C184*BA186 -> 0 | BE185: =$C184*BE186 -> 0 | BI185: =$C184*BI186 -> 0 | BM185: =$C184*BM186 -> 0 | BQ185: =$C184*BQ186 -> 0 | BU185: =$C184*BU186 -> 0 | BY185: =$C184*BY186 -> 0 | CC185: =$C184*CC186 -> 0 | CG185: =$C184*CG186 -> 28826.98441 | CK185: =$C184*CK186 -> 0 | CO185: =$C184*CO186 -> 0 | CS185: =$C184*CS186 -> 0 | CW185: =SUM(E185:CV185) -> 28826.98441 | CX185: =CW185=C184 -> TRUE
D186: % | CG186: =1 -> 1 | CW186: =SUM(E186:CV186) -> 1 | CX186: =CW186=100% -> TRUE
A187: 25. | B187: =VLOOKUP(A187,Resumo!$C$51:$K$77,2,FALSE) -> SERVIÇOS FINAIS | C187: =Resumo!J76 -> 521696.1467 | D187: DURAÇÃO
D188: R$ | E188: =$C187*E189 -> 0 | I188: =$C187*I189 -> 0 | M188: =$C187*M189 -> 0 | Q188: =$C187*Q189 -> 0 | U188: =$C187*U189 -> 0 | Y188: =$C187*Y189 -> 0 | AC188: =$C187*AC189 -> 0 | AG188: =$C187*AG189 -> 0 | AK188: =$C187*AK189 -> 0 | AO188: =$C187*AO189 -> 0 | AS188: =$C187*AS189 -> 0 | AW188: =$C187*AW189 -> 0 | BA188: =$C187*BA189 -> 0 | BE188: =$C187*BE189 -> 0 | BI188: =$C187*BI189 -> 0 | BM188: =$C187*BM189 -> 0 | BQ188: =$C187*BQ189 -> 0 | BU188: =$C187*BU189 -> 0 | BY188: =$C187*BY189 -> 0 | CC188: =$C187*CC189 -> 0 | CG188: =$C187*CG189 -> 521696.1467 | CK188: =$C187*CK189 -> 0 | CO188: =$C187*CO189 -> 0 | CS188: =$C187*CS189 -> 0 | CW188: =SUM(E188:CV188) -> 521696.1467 | CX188: =CW188=C187 -> TRUE
D189: % | CG189: =1 -> 1 | CW189: =SUM(E189:CV189) -> 1 | CX189: =CW189=100% -> TRUE
C190: =SUM(C10:C189) -> 311053618.7 | D190: MENSAL R$ (COM BDI) | E190: =SUMIF($D$10:$D$189,"=R$",E10:H189) -> 6009222.087 | I190: =SUMIF($D$10:$D$189,"=R$",I10:L189) -> 6594815.048 | M190: =SUMIF($D$10:$D$189,"=R$",M10:P189) -> 11141464.15 | Q190: =SUMIF($D$10:$D$189,"=R$",Q10:T189) -> 15946351.63 | U190: =SUMIF($D$10:$D$189,"=R$",U10:X189) -> 29973824.83 | Y190: =SUMIF($D$10:$D$189,"=R$",Y10:AB189) -> 30199727.61 | AC190: =SUMIF($D$10:$D$189,"=R$",AC10:AF189) -> 24600875.98 | AG190: =SUMIF($D$10:$D$189,"=R$",AG10:AJ189) -> 22439481.48 | AK190: =SUMIF($D$10:$D$189,"=R$",AK10:AN189) -> 22589985.59 | AO190: =SUMIF($D$10:$D$189,"=R$",AO10:AR189) -> 23175440.67 | AS190: =SUMIF($D$10:$D$189,"=R$",AS10:AV189) -> 21308366.33 | AW190: =SUMIF($D$10:$D$189,"=R$",AW10:AZ189) -> 22774635.48 | BA190: =SUMIF($D$10:$D$189,"=R$",BA10:BD189) -> 23801286.77 | BE190: =SUMIF($D$10:$D$189,"=R$",BE10:BH189) -> 9456396.454 | BI190: =SUMIF($D$10:$D$189,"=R$",BI10:BL189) -> 9624133.565 | BM190: =SUMIF($D$10:$D$189,"=R$",BM10:BP189) -> 7998669.272 | BQ190: =SUMIF($D$10:$D$189,"=R$",BQ10:BT189) -> 4512147.555 | BU190: =SUMIF($D$10:$D$189,"=R$",BU10:BX189) -> 4113734.845 | BY190: =SUMIF($D$10:$D$189,"=R$",BY10:CB189) -> 4629691.252 | CC190: =SUMIF($D$10:$D$189,"=R$",CC10:CF189) -> 2005589.367 | CG190: =SUMIF($D$10:$D$189,"=R$",CG10:CJ189) -> 8157778.716 | CK190: =SUMIF($D$10:$D$189,"=R$",CK10:CN189) -> 0 | CO190: =SUMIF($D$10:$D$189,"=R$",CO10:CR189) -> 0 | CS190: =SUMIF($D$10:$D$189,"=R$",CS10:CV189) -> 0
D191: ACUMULADO R$ (COM BDI) | E191: =E190 -> 6009222.087 | I191: =I190+E191 -> 12604037.14 | M191: =M190+I191 -> 23745501.29 | Q191: =Q190+M191 -> 39691852.92 | U191: =U190+Q191 -> 69665677.75 | Y191: =Y190+U191 -> 99865405.36 | AC191: =AC190+Y191 -> 124466281.3 | AG191: =AG190+AC191 -> 146905762.8 | AK191: =AK190+AG191 -> 169495748.4 | AO191: =AO190+AK191 -> 192671189.1 | AS191: =AS190+AO191 -> 213979555.4 | AW191: =AW190+AS191 -> 236754190.9 | BA191: =BA190+AW191 -> 260555477.7 | BE191: =BE190+BA191 -> 270011874.1 | BI191: =BI190+BE191 -> 279636007.7 | BM191: =BM190+BI191 -> 287634677 | BQ191: =BQ190+BM191 -> 292146824.5 | BU191: =BU190+BQ191 -> 296260559.4 | BY191: =BY190+BU191 -> 300890250.6 | CC191: =CC190+BY191 -> 302895840 | CG191: =CG190+CC191 -> 311053618.7 | CK191: =CK190+CG191 -> 311053618.7 | CO191: =CO190+CK191 -> 311053618.7 | CS191: =CS190+CO191 -> 311053618.7
E192: =E190/$C$190 -> 0.01931892679 | I192: =I190/$C$190 -> 0.02120153778 | M192: =M190/$C$190 -> 0.03581846821 | Q192: =Q190/$C$190 -> 0.05126560397 | U192: =U190/$C$190 -> 0.0963622444 | Y192: =Y190/$C$190 -> 0.0970884947 | AC192: =AC190/$C$190 -> 0.07908885962 | AG192: =AG190/$C$190 -> 0.07214023606 | AK192: =AK190/$C$190 -> 0.07262408868 | AO192: =AO190/$C$190 -> 0.07450625641 | AS192: =AS190/$C$190 -> 0.06850383681 | AW192: =AW190/$C$190 -> 0.0732177159 | BA192: =BA190/$C$190 -> 0.07651827641 | BE192: =BE190/$C$190 -> 0.03040117808 | BI192: =BI190/$C$190 -> 0.03094043273 | BM192: =BM190/$C$190 -> 0.02571476039 | BQ192: =BQ190/$C$190 -> 0.01450601209 | BU192: =BU190/$C$190 -> 0.01322516312 | BY192: =BY190/$C$190 -> 0.01488390095 | CC192: =CC190/$C$190 -> 0.006447728773 | CG192: =CG190/$C$190 -> 0.02622627813 | CK192: =CK190/$C$190 -> 0 | CO192: =CO190/$C$190 -> 0 | CS192: =CS190/$C$190 -> 0
E194: =E29+E32+E35+E38+E41+E44+E47+E50+E53+E56+E59+E62+E65+E68+E71+E74+E77+E80+E83+E86+E89 -> 1771880.906 | I194: =I29+I32+I35+I38+I41+I44+I47+I50+I53+I56+I59+I62+I65+I68+I71+I74+I77+I80+I83+I86+I89 -> 2323268.749 | M194: =M29+M32+M35+M38+M41+M44+M47+M50+M53+M56+M59+M62+M65+M68+M71+M74+M77+M80+M83+M86+M89 -> 6604343.163 | Q194: =Q29+Q32+Q35+Q38+Q41+Q44+Q47+Q50+Q53+Q56+Q59+Q62+Q65+Q68+Q71+Q74+Q77+Q80+Q83+Q86+Q89 -> 10171887.74 | U194: =U29+U32+U35+U38+U41+U44+U47+U50+U53+U56+U59+U62+#REF!+U68+U71+U74+U77+U80+U83+U86+U89 ->  | Y194: =Y29+Y32+Y35+Y38+Y41+Y44+Y47+Y50+#REF!+#REF!+Y59+Y62+Y65+Y68+Y71+Y74+Y77+Y80+Y83+Y86+Y89 ->  | AC194: =AC29+AC32+AC35+AC38+AC41+AC44+AC47+AC50+AC53+AC56+AC59+AC62+AC65+AC68+AC71+AC74+AC77+AC80+AC83+AC86+AC89 -> 9000040.845 | AG194: =AG29+AG32+AG35+AG38+AG41+AG44+AG47+AG50+AG53+AG56+AG59+#REF!+AG65+AG68+AG71+AG74+AG77+AG80+AG83+AG86+AG89 ->  | AK194: =AK29+AK32+AK35+AK38+AK41+AK44+AK47+AK50+AK53+AK56+AK59+AK62+AK65+AK68+AK71+AK74+AK77+AK80+AK83+AK86+AK89 -> 6960170.827 | AO194: =AO29+AO32+AO35+AO38+AO41+AO44+AO47+AO50+AO53+AO56+AO59+AO62+AO65+AO68+AO71+AO74+AO77+AO80+AO83+AO86+AO89 -> 6960170.827 | AS194: =AS29+AS32+AS35+AS38+AS41+AS44+AS47+AS50+AS53+AS56+AS59+AG62+AS65+AS68+AS71+AS74+AS77+AS80+AS83+AS86+AS89 -> 7706894.446 | AW194: =AW29+AW32+AW35+AW38+AW41+AW44+AW47+AW50+Y53+Y56+AW59+AW62+U65+AW68+#REF!+AW74+AW77+AW80+AW83+#REF!+#REF! ->  | BA194: =BA29+BA32+BA35+BA38+BA41+BA44+BA47+BA50+BA53+BA56+BA59+BA62+AW65+#REF!+BA71+#REF!+#REF!+#REF!+BA83+BA86+BA89 ->  | BE194: =BE29+BE32+BE35+BE38+BE41+BE44+BE47+BE50+BE53+BE56+BE59+BE62+BE65+BA68+AW71+BA74+BA77+BA80+BE83+AW86+AW89 -> 6381904.019 | BI194: =BI29+BI32+BI35+BI38+BI41+BI44+BI47+BI50+BI53+BI56+BI59+BI62+BI65+BI68+BI71+BI74+BI77+BI80+BI83+BI86+BI89 -> 0 | BM194: =BM29+BM32+BM35+BM38+BM41+BM44+BM47+BM50+BM53+BM56+BM59+BM62+BM65+BM68+BM71+BM74+BM77+BM80+BM83+BM86+BM89 -> 0 | BQ194: =BQ29+BQ32+BQ35+BQ38+BQ41+BQ44+BQ47+BQ50+BQ53+BQ56+BQ59+BQ62+BQ65+BQ68+BQ71+BQ74+BQ77+BQ80+BQ83+BQ86+BQ89 -> 0 | BU194: =BU29+BU32+BU35+BU38+BU41+BU44+BU47+BU50+BU53+BU56+BU59+BU62+BU65+BU68+BU71+BU74+BU77+BU80+BU83+BU86+BU89 -> 0 | BY194: =BY29+BY32+BY35+BY38+BY41+BY44+BY47+BY50+BY53+BY56+BY59+BY62+BY65+BY68+BY71+BY74+BY77+BY80+BY83+BY86+BY89 -> 0 | CC194: =CC29+CC32+CC35+CC38+CC41+CC44+CC47+CC50+CC53+CC56+CC59+CC62+CC65+CC68+CC71+CC74+CC77+CC80+CC83+CC86+CC89 -> 0 | CG194: =CG29+CG32+CG35+CG38+CG41+CG44+CG47+CG50+CG53+CG56+CG59+CG62+CG65+CG68+CG71+CG74+CG77+CG80+CG83+CG86+CG89 -> 0 | CK194: =CK29+CK32+CK35+CK38+CK41+CK44+CK47+CK50+CK53+CK56+CK59+CK62+CK65+CK68+CK71+CK74+CK77+CK80+CK83+CK86+CK89 -> 0 | CO194: =CO29+CO32+CO35+CO38+CO41+CO44+CO47+CO50+CO53+CO56+CO59+CO62+CO65+CO68+CO71+CO74+CO77+CO80+CO83+CO86+CO89 -> 0 | CS194: =CS29+CS32+CS35+CS38+CS41+CS44+CS47+CS50+CS53+CS56+CS59+CS62+CS65+CS68+CS71+CS74+CS77+CS80+CS83+CS86+CS89 -> 0
E195: =E194/Resumo!$J$21 -> 0.01497299071 | I195: =I194/Resumo!$J$21 -> 0.01963240378 | M195: =M194/Resumo!$J$21 -> 0.05580892514 | Q195: =Q194/Resumo!$J$21 -> 0.08595587891 | U195: =U194/Resumo!$J$21 ->  | Y195: =Y194/Resumo!$J$21 ->  | AC195: =AC194/Resumo!$J$21 -> 0.07605337781 | AG195: =AG194/Resumo!$J$21 ->  | AK195: =AK194/Resumo!$J$21 -> 0.0588157888 | AO195: =AO194/Resumo!$J$21 -> 0.0588157888 | AS195: =AS194/Resumo!$J$21 -> 0.065125855 | AW195: =AW194/Resumo!$J$21 ->  | BA195: =BA194/Resumo!$J$21 ->  | BE195: =BE194/Resumo!$J$21 -> 0.05392923942 | BI195: =BI194/Resumo!$J$21 -> 0 | BM195: =BM194/Resumo!$J$21 -> 0 | BQ195: =BQ194/Resumo!$J$21 -> 0 | BU195: =BU194/Resumo!$J$21 -> 0 | BY195: =BY194/Resumo!$J$21 -> 0 | CC195: =CC194/Resumo!$J$21 -> 0 | CG195: =CG194/Resumo!$J$21 -> 0 | CK195: =CK194/Resumo!$J$21 -> 0 | CO195: =CO194/Resumo!$J$21 -> 0 | CS195: =CS194/Resumo!$J$21 -> 0
C198: FASE 01 | E198: =SUMIF($D$10:$D$90,"=R$",E10:H90) -> 3748873.148 | I198: =SUMIF($D$10:$D$90,"=R$",I10:L90) -> 4334466.109 | M198: =SUMIF($D$10:$D$90,"=R$",M10:P90) -> 8881115.214 | Q198: =SUMIF($D$10:$D$90,"=R$",Q10:T90) -> 12669970.95 | U198: =SUMIF($D$10:$D$90,"=R$",U10:X90) -> 18973421.63 | Y198: =SUMIF($D$10:$D$90,"=R$",Y10:AB90) -> 18308584.53 | AC198: =SUMIF($D$10:$D$90,"=R$",AC10:AF90) -> 11425429.02 | AG198: =SUMIF($D$10:$D$90,"=R$",AG10:AJ90) -> 10052062.81 | AK198: =SUMIF($D$10:$D$90,"=R$",AK10:AN90) -> 9259016.501 | AO198: =SUMIF($D$10:$D$90,"=R$",AO10:AR90) -> 9259016.501 | AS198: =SUMIF($D$10:$D$90,"=R$",AS10:AV90) -> 7391942.163 | AW198: =SUMIF($D$10:$D$90,"=R$",AW10:AZ90) -> 8958470.385 | BA198: =SUMIF($D$10:$D$90,"=R$",BA10:BD90) -> 13746850.69 | BE198: =SUMIF($D$10:$D$90,"=R$",BE10:BH90) -> 0 | BI198: =SUMIF($D$10:$D$90,"=R$",BI10:BL90) -> 0 | BM198: =SUMIF($D$10:$D$90,"=R$",BM10:BP90) -> 0 | BQ198: =SUMIF($D$10:$D$90,"=R$",BQ10:BT90) -> 0 | BU198: =SUMIF($D$10:$D$90,"=R$",BU10:BX90) -> 0 | BY198: =SUMIF($D$10:$D$90,"=R$",BY10:CB90) -> 0 | CC198: =SUMIF($D$10:$D$90,"=R$",CC10:CF90) -> 0 | CG198: =SUMIF($D$10:$D$90,"=R$",CG10:CJ90) -> 0 | CK198: =SUMIF($D$10:$D$90,"=R$",CK10:CN90) -> 0 | CO198: =SUMIF($D$10:$D$90,"=R$",CO10:CR90) -> 0 | CS198: =SUMIF($D$10:$D$90,"=R$",CS10:CV90) -> 0
C199: =SUM(C16:C21,C25:C90) -> 137009219.7 | E199: =E198/$C$199 -> 0.02736219619 | I199: =I198/$C$199 -> 0.03163630973 | M199: =M198/$C$199 -> 0.06482129624 | Q199: =Q198/$C$199 -> 0.09247531649 | U199: =U198/$C$199 -> 0.1384828092 | Y199: =Y198/$C$199 -> 0.1336303102 | AC199: =AC198/$C$199 -> 0.08339168011 | AG199: =AG198/$C$199 -> 0.07336778385 | AK199: =AK198/$C$199 -> 0.06757951417 | AO199: =AO198/$C$199 -> 0.06757951417 | AS199: =AS198/$C$199 -> 0.0539521514 | AW199: =AW198/$C$199 -> 0.06538589452 | BA199: =BA198/$C$199 -> 0.1003352236 | BE199: =BE198/$C$199 -> 0
C204: FASE 02 | E204: =SUMIF($D$94:$D$111,"=R$",E94:H111) -> 0 | I204: =SUMIF($D$94:$D$111,"=R$",I94:L111) -> 0 | M204: =SUMIF($D$94:$D$111,"=R$",M94:P111) -> 0 | Q204: =SUMIF($D$94:$D$111,"=R$",Q94:T111) -> 0 | U204: =SUMIF($D$94:$D$111,"=R$",U94:X111) -> 0 | Y204: =SUMIF($D$94:$D$111,"=R$",Y94:AB111) -> 0 | AC204: =SUMIF($D$94:$D$111,"=R$",AC94:AF111) -> 0 | AG204: =SUMIF($D$94:$D$111,"=R$",AG94:AJ111) -> 0 | AK204: =SUMIF($D$94:$D$111,"=R$",AK94:AN111) -> 100259.0736 | AO204: =SUMIF($D$94:$D$111,"=R$",AO94:AR111) -> 913276.9658 | AS204: =SUMIF($D$94:$D$111,"=R$",AS94:AV111) -> 913276.9658 | AW204: =SUMIF($D$94:$D$111,"=R$",AW94:AZ111) -> 813017.8922 | BA204: =SUMIF($D$94:$D$111,"=R$",BA94:BD111) -> 813017.8922 | BE204: =SUMIF($D$94:$D$111,"=R$",BE94:BH111) -> 214978.2684 | BI204: =SUMIF($D$94:$D$111,"=R$",BI94:BL111) -> 0 | BM204: =SUMIF($D$94:$D$111,"=R$",BM94:BP111) -> 0 | BQ204: =SUMIF($D$94:$D$111,"=R$",BQ94:BT111) -> 0 | BU204: =SUMIF($D$94:$D$111,"=R$",BU94:BX111) -> 0 | BY204: =SUMIF($D$94:$D$111,"=R$",BY94:CB111) -> 0 | CC204: =SUMIF($D$94:$D$111,"=R$",CC94:CF111) -> 0 | CG204: =SUMIF($D$94:$D$111,"=R$",CG94:CJ111) -> 0 | CK204: =SUMIF($D$94:$D$111,"=R$",CK94:CN111) -> 0 | CO204: =SUMIF($D$94:$D$111,"=R$",CO94:CR111) -> 0 | CS204: =SUMIF($D$94:$D$111,"=R$",CS94:CV111) -> 0
C205: =SUM(C94:C111) -> 3767827.058 | E205: =E204/$C$205 -> 0 | I205: =I204/$C$205 -> 0 | M205: =M204/$C$205 -> 0 | Q205: =Q204/$C$205 -> 0 | U205: =U204/$C$205 -> 0 | Y205: =Y204/$C$205 -> 0 | AC205: =AC204/$C$205 -> 0 | AG205: =AG204/$C$205 -> 0 | AK205: =AK204/$C$205 -> 0.02660925569 | AO205: =AO204/$C$205 -> 0.2423882391 | AS205: =AS204/$C$205 -> 0.2423882391 | AW205: =AW204/$C$205 -> 0.2157789834 | BA205: =BA204/$C$205 -> 0.2157789834 | BE205: =BE204/$C$205 -> 0.05705629931 | BI205: =BI204/$C$205 -> 0 | BM205: =BM204/$C$205 -> 0 | BQ205: =BQ204/$C$205 -> 0 | BU205: =BU204/$C$205 -> 0 | BY205: =BY204/$C$205 -> 0 | CC205: =CC204/$C$205 -> 0 | CG205: =CG204/$C$205 -> 0 | CK205: =CK204/$C$205 -> 0 | CO205: =CO204/$C$205 -> 0 | CS205: =CS204/$C$205 -> 0
C209: FASE 03 | E209: =SUMIF($D$115:$D$189,"=R$",E115:H189) -> 2260348.939 | I209: =SUMIF($D$115:$D$189,"=R$",I115:L189) -> 2260348.939 | M209: =SUMIF($D$115:$D$189,"=R$",M115:P189) -> 2260348.939 | Q209: =SUMIF($D$115:$D$189,"=R$",Q115:T189) -> 3276380.682 | U209: =SUMIF($D$115:$D$189,"=R$",U115:X189) -> 11000403.2 | Y209: =SUMIF($D$115:$D$189,"=R$",Y115:AB189) -> 11891143.08 | AC209: =SUMIF($D$115:$D$189,"=R$",AC115:AF189) -> 13175446.97 | AG209: =SUMIF($D$115:$D$189,"=R$",AG115:AJ189) -> 12387418.67 | AK209: =SUMIF($D$115:$D$189,"=R$",AK115:AN189) -> 13230710.02 | AO209: =SUMIF($D$115:$D$189,"=R$",AO115:AR189) -> 13003147.21 | AS209: =SUMIF($D$115:$D$189,"=R$",AS115:AV189) -> 13003147.21 | AW209: =SUMIF($D$115:$D$189,"=R$",AW115:AZ189) -> 13003147.21 | BA209: =SUMIF($D$115:$D$189,"=R$",BA115:BD189) -> 9241418.186 | BE209: =SUMIF($D$115:$D$189,"=R$",BE115:BH189) -> 9241418.186 | BI209: =SUMIF($D$115:$D$189,"=R$",BI115:BL189) -> 9624133.565 | BM209: =SUMIF($D$115:$D$189,"=R$",BM115:BP189) -> 7998669.272 | BQ209: =SUMIF($D$115:$D$189,"=R$",BQ115:BT189) -> 4512147.555 | BU209: =SUMIF($D$115:$D$189,"=R$",BU115:BX189) -> 4113734.845 | BY209: =SUMIF($D$115:$D$189,"=R$",BY115:CB189) -> 4629691.252 | CC209: =SUMIF($D$115:$D$189,"=R$",CC115:CF189) -> 2005589.367 | CG209: =SUMIF($D$115:$D$189,"=R$",CG115:CJ189) -> 8157778.716 | CK209: =SUMIF($D$115:$D$189,"=R$",CK115:CN189) -> 0 | CO209: =SUMIF($D$115:$D$189,"=R$",CO115:CR189) -> 0 | CS209: =SUMIF($D$115:$D$189,"=R$",CS115:CV189) -> 0
C210: =SUM(C115:C189) -> 170276572 | E210: =E209/$C$210 -> 0.0132745739 | I210: =I209/$C$210 -> 0.0132745739 | M210: =M209/$C$210 -> 0.0132745739 | Q210: =Q209/$C$210 -> 0.01924152362 | U210: =U209/$C$210 -> 0.06460315161 | Y210: =Y209/$C$210 -> 0.06983428748 | AC210: =AC209/$C$210 -> 0.07737674545 | AG210: =AG209/$C$210 -> 0.07274881402 | AK210: =AK209/$C$210 -> 0.0777012942 | AO210: =AO209/$C$210 -> 0.07636486367 | AS210: =AS209/$C$210 -> 0.07636486367 | AW210: =AW209/$C$210 -> 0.07636486367 | BA210: =BA209/$C$210 -> 0.05427298705 | BE210: =BE209/$C$210 -> 0.05427298705 | BI210: =BI209/$C$210 -> 0.05652059736 | BM210: =BM209/$C$210 -> 0.04697457307 | BQ210: =BQ209/$C$210 -> 0.02649893348 | BU210: =BU209/$C$210 -> 0.02415913591 | BY210: =BY209/$C$210 -> 0.02718924394 | CC210: =CC209/$C$210 -> 0.01177842227 | CG210: =CG209/$C$210 -> 0.04790899077 | CK210: =CK209/$C$210 -> 0 | CO210: =CO209/$C$210 -> 0 | CS210: =CS209/$C$210 -> 0

Sheet Planilha4
A1: FASE 1
A2: =CRONOGRAMA!E199 -> 0.02736219619 | B2: ETAPA 01 | C2: =A2 -> 0.02736219619
A3: =CRONOGRAMA!I199 -> 0.03163630973 | B3: ETAPA 02 | C3: =A3+C2 -> 0.05899850592
A4: =CRONOGRAMA!M199 -> 0.06482129624 | B4: ETAPA 03 | C4: =A4+C3 -> 0.1238198022
A5: =CRONOGRAMA!Q199 -> 0.09247531649 | B5: ETAPA 04 | C5: 0.2162951186
A6: =CRONOGRAMA!U199 -> 0.1384828092 | B6: ETAPA 05 | C6: 0.3547779279
A7: =CRONOGRAMA!Y199 -> 0.1336303102 | B7: ETAPA 06 | C7: 0.4884082381
A8: =CRONOGRAMA!AC199 -> 0.08339168011 | B8: ETAPA 07 | C8: 0.5717999182
A9: =CRONOGRAMA!AG199 -> 0.07336778385 | B9: ETAPA 08 | C9: 0.6451677021
A10: =CRONOGRAMA!AK199 -> 0.06757951417 | B10: ETAPA 09 | C10: 0.7127472163
A11: =CRONOGRAMA!AO199 -> 0.06757951417 | B11: ETAPA 10 | C11: 0.7803267304
A12: =CRONOGRAMA!AS199 -> 0.0539521514 | B12: ETAPA 11 | C12: 0.8342788818
A13: =CRONOGRAMA!AW199 -> 0.06538589452 | B13: ETAPA 12 | C13: 0.8996647764
A14: =CRONOGRAMA!BA199 -> 0.1003352236 | B14: ETAPA 13 | C14: 1
A19: FASE 02
A20: =CRONOGRAMA!AK205 -> 0.02660925569 | B20: ETAPA 09 | C20: =A20 -> 0.02660925569
A21: =CRONOGRAMA!AO205 -> 0.2423882391 | B21: ETAPA 10 | C21: =A21+C20 -> 0.2689974948
A22: =CRONOGRAMA!AS205 -> 0.2423882391 | B22: ETAPA 11 | C22: =A22+C21 -> 0.5113857339
A23: =CRONOGRAMA!AW205 -> 0.2157789834 | B23: ETAPA 12 | C23: 0.7271647173
A24: =CRONOGRAMA!BA205 -> 0.2157789834 | B24: ETAPA 13 | C24: 0.9429437007
A25: =CRONOGRAMA!BE205 -> 0.05705629931 | B25: ETAPA 14 | C25: 1
A37: FASE 03
A38: =CRONOGRAMA!E210 -> 0.0132745739 | B38: ETAPA 01 | C38: =A38 -> 0.0132745739
A39: =CRONOGRAMA!I210 -> 0.0132745739 | B39: ETAPA 02 | C39: =A39+C38 -> 0.02654914781
A40: =CRONOGRAMA!M210 -> 0.0132745739 | B40: ETAPA 03 | C40: =A40+C39 -> 0.03982372171
A41: =CRONOGRAMA!Q210 -> 0.01924152362 | B41: ETAPA 04 | C41: 0.05906524533
A42: =CRONOGRAMA!U210 -> 0.06460315161 | B42: ETAPA 05 | C42: 0.1236683969
A43: =CRONOGRAMA!Y210 -> 0.06983428748 | B43: ETAPA 06 | C43: 0.1935026844
A44: =CRONOGRAMA!AC210 -> 0.07737674545 | B44: ETAPA 07 | C44: 0.2708794299
A45: =CRONOGRAMA!AG210 -> 0.07274881402 | B45: ETAPA 08 | C45: 0.3436282439
A46: =CRONOGRAMA!AK210 -> 0.0777012942 | B46: ETAPA 09 | C46: 0.4213295381
A47: =CRONOGRAMA!AO210 -> 0.07636486367 | B47: ETAPA 10 | C47: 0.4976944018
A48: =CRONOGRAMA!AS210 -> 0.07636486367 | B48: ETAPA 11 | C48: 0.5740592654
A49: =CRONOGRAMA!AW210 -> 0.07636486367 | B49: ETAPA 12 | C49: 0.6504241291
A50: =CRONOGRAMA!BA210 -> 0.05427298705 | B50: ETAPA 13 | C50: 0.7046971162
A51: =CRONOGRAMA!BE210 -> 0.05427298705 | B51: ETAPA 14 | C51: 0.7589701032
A52: =CRONOGRAMA!BI210 -> 0.05652059736 | B52: ETAPA 15 | C52: 0.8154907006
A53: =CRONOGRAMA!BM210 -> 0.04697457307 | B53: ETAPA 16 | C53: 0.8624652736
A54: =CRONOGRAMA!BQ210 -> 0.02649893348 | B54: ETAPA 17 | C54: 0.8889642071
A55: =CRONOGRAMA!BU210 -> 0.02415913591 | B55: ETAPA 18 | C55: 0.913123343
A56: =CRONOGRAMA!BY210 -> 0.02718924394 | B56: ETAPA 19 | C56: 0.940312587
A57: =CRONOGRAMA!CC210 -> 0.01177842227 | B57: ETAPA 20 | C57: 0.9520910092
A58: =CRONOGRAMA!CG210 -> 0.04790899077 | B58: ETAPA 21 | C58: 1
